Workbook

Sheet Лист1
E1: Приложение № 2 к ЛЗК ___ | J1: z | K1: z | AF1: z | AG1: z | AH1: z | AI1: z | AJ1: z | AK1: z | AL1: z | AM1: z | AN1: z | AO1: z | AP1: z
J3: =IF(J9:J14=0,"тревога","всё ок") -> 
J6: Коэфициент | K6: Маса
A7: См. Косые резы и выполнять согласно чертежа | G7: План / шт | H7: 10 | K7: =U174-AB172 -> 
A8: № п/п | B8: длина | C8: ширина условная расчет программы | D8: кол-во на изделие | E8: материал профиль трубы | F8: тол-на | G8: План | H8: кол-во на план | J8: =SUM(H9:H31) -> 700 | K8: =SUM(K9:K31) -> 91.20958
A9: =IF(H9=0,"z",Q9) -> 1 | B9: 589 | C9: 500 | D9: 2 | E9: Труба 20х20 чм, 1.5 мм | F9: =IFERROR(VLOOKUP(E9,$AI$70:$AK$174,2,0),"") -> 1.5 | G9: =H7 -> 10 | H9: =D9*G9 -> 20 | J9: =IFERROR(VLOOKUP(E9,$AI$70:$AK$174,3,0),0) -> 1.872 | K9: =B9*C9*H9*J9/1000000-L9 -> 11.02608 | L9: 0 | Q9: =IF(H9=0,0,1) -> 1
A10: =IF(H10=0,"z",Q10) -> 2 | B10: 12 | C10: 500 | D10: 3 | E10: Труба 20 чм, 1.0 мм | F10: =IFERROR(VLOOKUP(E10,$AI$70:$AK$174,2,0),"") -> 1 | G10: =H7 -> 10 | H10: =D10*G10 -> 30 | J10: 0.98 | K10: =B10*C10*H10*J10/1000000 -> 0.1764 | L10: 0.785 | Q10: =IF(H10=0,Q9,Q9+1) -> 2
A11: 3 | B11: 54 | C11: 500 | D11: 5 | E11: Труба 30х50 чм, 2.0 мм | F11: 2 | G11: =H7 -> 10 | H11: 50 | J11: 4.89 | K11: 6.6015 | Q11: =IF(H11=0,Q10,Q10+1) -> 3
A12: 4 | B12: 87 | C12: 500 | D12: 8 | E12: Труба 20 чм, 1.0 мм | F12: 1 | G12: =H7 -> 10 | H12: 80 | J12: 0.98 | K12: 3.4104 | Q12: =IF(H12=0,Q11,Q11+1) -> 4
A13: 5 | B13: 848 | C13: 500 | D13: 8 | E13: Труба 20 чм, 1.0 мм | F13: 1 | G13: =H7 -> 10 | H13: 80 | J13: 0.98 | K13: 33.2416 | Q13: 5
A14: 6 | B14: 589 | C14: 500 | D14: 10 | E14: Труба 20х20 чм, 1.0 мм | F14: 1 | G14: =H7 -> 10 | H14: 100 | J14: 1.248 | K14: 36.7536 | Q14: 6
A15: 7 | B15: 32 | C15: 500 | D15: 34 | G15: =H7 -> 10 | H15: 340 | J15: 0 | K15: 0 | Q15: 7
A16: z | C16: 500 | G16: =H7 -> 10 | H16: 0 | J16: 0 | K16: 0 | Q16: 7
A17: z | C17: 500 | G17: =H7 -> 10 | H17: 0 | J17: 0 | K17: 0 | Q17: 7
A18: z | C18: 500 | G18: =H7 -> 10 | H18: 0 | J18: 0 | K18: 0 | Q18: 7
A19: z | C19: 500 | G19: =H7 -> 10 | H19: 0 | J19: 0 | K19: 0 | Q19: 7
A20: z | C20: 500 | G20: =H7 -> 10 | H20: 0 | J20: 0 | K20: 0 | Q20: 7
A21: z | C21: 500 | G21: =H7 -> 10 | H21: 0 | J21: 0 | K21: 0 | Q21: 7
A22: z | C22: 500 | G22: =H7 -> 10 | H22: 0 | J22: 0 | K22: 0 | Q22: 7
A23: z | C23: 500 | G23: =H7 -> 10 | H23: 0 | J23: 0 | K23: 0 | Q23: 7
A24: z | C24: 500 | G24: =H7 -> 10 | H24: 0 | J24: 0 | K24: 0 | Q24: 7
A25: z | C25: 500 | G25: =H7 -> 10 | H25: 0 | J25: 0 | K25: 0 | Q25: 7
A26: z | C26: 500 | G26: =H7 -> 10 | H26: 0 | J26: 0 | K26: 0 | Q26: 7
A27: z | C27: 500 | G27: =H7 -> 10 | H27: 0 | J27: 0 | K27: 0 | Q27: 7
A28: z | C28: 500 | G28: =H7 -> 10 | H28: 0 | J28: 0 | K28: 0 | Q28: 7
A29: z | C29: 500 | G29: =H7 -> 10 | H29: 0 | J29: 0 | K29: 0 | Q29: 7
A30: z | C30: 500 | G30: =H7 -> 10 | H30: 0 | J30: 0 | K30: 0 | Q30: 7
A31: z | C31: 500 | G31: =H7 -> 10 | H31: 0 | J31: 0 | K31: 0 | Q31: 7
A33: Карта рас-кроя № | B33: Длина, мм | C33: Ширина, мм | D33: Толщина, мм | E33: Марка материала | F33: Кол-во | G33: Площадь остатков всего, кв.м | H33: Площадь деталей всего, кв.м | I33: Количество деталей | K33: Коэфициент | L33: Трубы/остатка со склада масса (кг) | N33: Получил | O33: Деловой остаток на склад (кг) | Q33: Получил кла-довщик | R33: ЛОМ общий (кг) | T33: Получил кладовщик | U33: Масса деталей (кг) | W33: Количество деталей | X33: Получил | Y33: Расход (кг) | Z33: ЛОМ (кг)
L34: теория | M34: факт | O34: теория | P34: факт | R34: теория | S34: факт | U34: теория | V34: факт
A35: 1 | B35: 6000 | C35: 500 | D35: 1 | E35: Труба 30х20 чм, 1.0 мм | F35: 5 | G35: 0.65495 | H35: 0.548 | I35: 5 | K35: =IFERROR(VLOOKUP(E35,$AI$70:$AK$174,3,0),0) -> 1.572 | L35: =B35*C35*F35*K35/1000000 -> 23.58 | O35: =G35*K35 -> 1.0295814 | R35: =Y35-U35 -> 21.6889626 | U35: =H35*K35 -> 0.861456 | Y35: =L35-O35 -> 22.5504186 | Z35: =Y35-U35 -> 21.6889626
A36: 2 | B36: 5645 | C36: 500 | D36: 1 | E36: Труба 30х20 чм, 1.0 мм | F36: 2 | G36: 0.9581 | H36: 0.55 | I36: 2 | K36: =IFERROR(VLOOKUP(E36,$AI$70:$AK$174,3,0),0) -> 1.572 | L36: 8.87394 | O36: 1.5061332 | R36: =Y36-U36 -> 6.5032068 | U36: =H36*K36 -> 0.8646 | Y36: =L36-O36 -> 7.3678068 | Z36: =Y36-U36 -> 6.5032068
A37: 3 | B37: 5622 | C37: 500 | D37: 1.5 | E37: Труба 40х20 чм, 1.5 мм | F37: 10 | G37: 0.9541 | H37: 0.258 | I37: 3 | K37: 2.88 | L37: 80.9568 | O37: 2.747808 | U37: 0.74304 | Y37: 78.208992 | Z37: 77.465952
A38: 4 | B38: 6000 | C38: 500 | D38: 1.5 | E38: Труба 40х20 чм, 1.5 мм | F38: 10 | G38: 0.9541 | H38: 0.258 | I38: 3 | K38: 2.88 | L38: 86.4 | O38: 2.747808 | U38: 0.74304 | Y38: 83.652192 | Z38: 82.909152
A39: z | K39: 0 | L39: 0 | O39: 0 | U39: 0 | Y39: 0 | Z39: 0
A40: z | K40: 0 | L40: 0 | O40: 0 | U40: 0 | Y40: 0 | Z40: 0
A41: z | K41: 0 | L41: 0 | O41: 0 | U41: 0 | Y41: 0 | Z41: 0
A42: z | K42: 0 | L42: 0 | O42: 0 | U42: 0 | Y42: 0 | Z42: 0
A43: z | K43: 0 | L43: 0 | O43: 0 | U43: 0 | Y43: 0 | Z43: 0
A44: z | K44: 0 | L44: 0 | O44: 0 | U44: 0 | Y44: 0 | Z44: 0
A45: z | K45: 0 | L45: 0 | O45: 0 | U45: 0 | Y45: 0 | Z45: 0
A46: z | K46: 0 | L46: 0 | O46: 0 | U46: 0 | Y46: 0 | Z46: 0
A47: z | K47: 0 | L47: 0 | O47: 0 | U47: 0 | Y47: 0 | Z47: 0
A48: z | K48: 0 | L48: 0 | O48: 0 | U48: 0 | Y48: 0 | Z48: 0
A49: z | K49: 0 | L49: 0 | O49: 0 | U49: 0 | Y49: 0 | Z49: 0
A50: z | K50: 0 | L50: 0 | O50: 0 | U50: 0 | Y50: 0 | Z50: 0
A51: z | K51: 0 | L51: 0 | O51: 0 | U51: 0 | Y51: 0 | Z51: 0
A52: z | K52: 0 | L52: 0 | O52: 0 | U52: 0 | Y52: 0 | Z52: 0
A53: z | K53: 0 | L53: 0 | O53: 0 | U53: 0 | Y53: =L53-O53 -> 0 | Z53: 0
A54: z | K54: 0 | L54: 0 | O54: 0 | U54: 0 | Y54: =L54-O54 -> 0 | Z54: 0
A55: z | K55: 0 | L55: 0 | O55: 0 | U55: 0 | Y55: 0 | Z55: 0
A56: z | K56: 0 | L56: 0 | O56: 0 | U56: 0 | Y56: 0 | Z56: 0
A57: z | K57: 0 | L57: 0 | O57: 0 | U57: 0 | Y57: 0 | Z57: 0
A58: z | K58: 0 | L58: 0 | O58: 0 | U58: 0 | Y58: 0 | Z58: 0
A59: z | K59: 0 | L59: 0 | O59: 0 | U59: 0 | Y59: 0 | Z59: 0
A60: z | K60: 0 | L60: 0 | O60: 0 | U60: 0 | Y60: 0 | Z60: 0
A61: z | K61: 0 | L61: 0 | O61: 0 | U61: 0 | Y61: 0 | Z61: 0
A62: z | K62: 0 | L62: 0 | O62: 0 | U62: 0 | Y62: 0 | Z62: 0
A63: z | K63: 0 | L63: 0 | O63: 0 | U63: 0 | Y63: 0 | Z63: 0
A64: z | K64: 0 | L64: 0 | O64: 0 | U64: 0 | Y64: 0 | Z64: 0
A65: z | K65: 0 | L65: 0 | O65: 0 | U65: 0 | Y65: 0 | Z65: 0
L66: =SUM(L35:L65) -> 199.81074 | O66: =SUM(O35:O65) -> 8.0313306 | U66: =SUM(U35:U65) -> 3.212136 | Y66: =SUM(Y35:Y65) -> 191.7794094 | Z66: =SUM(Z35:Z65) -> 188.5672734
H68: Кол-во труб чм | I68: Трубы по толщине | L68: Трубы/остатка со склада масса (кг) | N68: Получил | O68: Деловой остаток на склад (кг) | Q68: Получил кладовщик | R68: ЛОМ (кг) | T68: Получил кладовщик | U68: масса деталей (кг) | W68: Количество | X68: Получил | Y68: Расход (кг) | AA68: ЛОМ (кг) дубль | AB68: отход на порезку | AC68: лом чистый | AH68: народное название | AI68: название в АСТРА | AJ68: толщина мм | AK68: масса 2м (коэф) | AM68: длина трубы мм | AN68: не равно | AO68: толщина реза мм
L69: теория | M69: факт | O69: теория | P69: факт | R69: теория | S69: факт | U69: теория | V69: факт | AI69: Столбец1
A70: =IF(U72=0,"z"," ") -> z | F70: Труба 25х25 чм, 0.8 мм | H70: =SUMIFS(F35:F65,C35:C65,"=500",B35:B65,"=6000",D35:D65,"=0,8",E35:E65,"=Труба 25х25 чм, 0.8 мм") -> 0 | I70: 0.8 | K70: 1.2384 | L70: =SUMIFS(L35:L65,B35:B65,"=6000",C35:C65,"=500",D35:D65,"=0,8",E35:E65,"=Труба 25х25 чм, 0.8 мм") -> 0 | O70: =SUMIFS(O35:O65,B35:B65,"=6000",C35:C65,"=500",D35:D65,"=0,8",E35:E65,"=Труба 25х25 чм, 0.8 мм") -> 0 | R70: =AC70+AC71-AB70 -> 0 | U70: =SUMIFS(U35:U65,B35:B65,"=6000",C35:C65,"=500",D35:D65,"=0,8",E35:E65,"=Труба 25х25 чм, 0.8 мм") -> 0 | Y70: =SUMIFS(Y35:Y65,B35:B65,"=6000",C35:C65,"=500",D35:D65,"=0,8",E35:E65,"=Труба 25х25 чм, 0.8 мм") -> 0 | AA70: =AC70+AC71-AB70 -> 0 | AB70: =AG76*0.005*AL76 -> 0 | AC70: =SUMIFS(Z35:Z65,B35:B65,"=6000",C35:C65,"=500",D35:D65,"=0,8",E35:E65,"=Труба 25х25 чм, 0.8 мм") -> 0 | AG70: =SUMIFS($H$9:$H$31,$E$9:$E$31,AI70) -> 0 | AH70: Труба ø 16х1 | AJ70: 1 | AK70: 0.74 | AL70: 0.37 | AM70: 6000 | AN70: =CONCATENATE("<>",AM70) -> <>6000 | AO70: 5
A71: =IF(U72=0,"z"," ") -> z | G71: Остатки | L71: =SUMIFS(L35:L65,B35:B65,"<>6000",C35:C65,"=500",D35:D65,"=0,8",E35:E65,"=Труба 25х25 чм, 0.8 мм") -> 0 | O71: =SUMIFS(O35:O65,B35:B65,"<>6000",C35:C65,"=500",D35:D65,"=0,8",E35:E65,"=Труба 25х25 чм, 0.8 мм") -> 0 | U71: =SUMIFS(U35:U65,B35:B65,"<>6000",C35:C65,"=500",D35:D65,"=0,8",E35:E65,"=Труба 25х25 чм, 0.8 мм") -> 0 | Y71: =SUMIFS(Y35:Y65,B35:B65,"<>6000",C35:C65,"=500",D35:D65,"=0,8",E35:E65,"=Труба 25х25 чм, 0.8 мм") -> 0 | AC71: =SUMIFS(Z35:Z65,B35:B65,"<>6000",C35:C65,"=500",D35:D65,"=0,8",E35:E65,"=Труба 25х25 чм, 0.8 мм") -> 0
A72: =IF(U72=0,"z"," ") -> z | G72: общая | L72: =L70+L71 -> 0 | O72: =O70+O71 -> 0 | R72: =R70 -> 0 | U72: =U70+U71+AB70 -> 0 | Y72: =Y70+Y71 -> 0
A73: =IF(U75=0,"z"," ") ->  | F73: =AI73 -> Труба 20х20 чм, 1.0 мм | H73: =SUMIFS($F$35:$F$65,$C$35:$C$65,"=500",$B$35:$B$65,AM59,$D$35:$D$65,AJ73,$E$35:$E$65,AI73) -> 0 | I73: =AJ73 -> 1 | K73: =AK73 -> 1.248 | L73: =SUMIFS($L$35:$L$65,$B$35:$B$65,AM73,$C$35:$C$65,"=500",$D$35:$D$65,AJ73,$E$35:$E$65,AI73) -> 0 | O73: =SUMIFS($O$35:$O$65,$B$35:$B$65,AM73,$C$35:$C$65,"=500",$D$35:$D$65,AJ73,$E$35:$E$65,AI73) -> 0 | R73: =AC73+AC74-AB73 -> -0.312 | U73: =SUMIFS($U$35:$U$65,$B$35:$B$65,AM73,$C$35:$C$65,"=500",$D$35:$D$65,AJ73,$E$35:$E$65,AI73) -> 0 | Y73: =SUMIFS($Y$35:$Y$65,$B$35:$B$65,AM73,$C$35:$C$65,"=500",$D$35:$D$65,AJ73,$E$35:$E$65,AI73) -> 0 | AA73: =AC73+AC74-AB73 -> -0.312 | AB73: =AG73*AO73/1000/2*AK73 -> 0.312 | AC73: =SUMIFS($Z$35:$Z$65,$B$35:$B$65,AM73,$C$35:$C$65,"=500",$D$35:$D$65,AJ73,$E$35:$E$65,AI73) -> 0 | AG73: =SUMIFS($H$9:$H$31,$E$9:$E$31,AI73) -> 100 | AH73: Труба 20х20 чм, 1.0 мм | AI73: Труба 20х20 чм, 1.0 мм | AJ73: 1 | AK73: 1.248 | AL73: 0.624 | AM73: 6000 | AN73: <>6000 | AO73: 5
A74: =IF(U75=0,"z"," ") ->  | G74: Остатки | L74: =SUMIFS($L$35:$L$65,$B$35:$B$65,AN73,$C$35:$C$65,"=500",$D$35:$D$65,AJ73,$E$35:$E$65,AI73) -> 0 | O74: =SUMIFS($O$35:$O$65,$B$35:$B$65,AN73,$C$35:$C$65,"=500",$D$35:$D$65,AJ73,$E$35:$E$65,AI73) -> 0 | U74: =SUMIFS($U$35:$U$65,$B$35:$B$65,AN73,C23:C53,"=500",$D$35:$D$65,AJ73,$E$35:$E$65,AI73) -> 0 | Y74: =SUMIFS($Y$35:$Y$65,$B$35:$B$65,AN73,$C$35:$C$65,"=500",$D$35:$D$65,AJ73,$E$35:$E$65,AI73) -> 0 | AC74: =SUMIFS($Z$35:$Z$65,$B$35:$B$65,AN73,$C$35:$C$65,"=500",$D$35:$D$65,AJ73,$E$35:$E$65,AI73) -> 0
A75: =IF(U75=0,"z"," ") ->  | G75: общая | L75: =L73+L74 -> 0 | O75: =O73+O74 -> 0 | R75: =R73 -> -0.312 | U75: =U73+U74+AB73 -> 0.312 | Y75: =Y73+Y74 -> 0
A76: =IF(U78=0,"z"," ") -> z | F76: =AI76 -> Труба 25х25 чм, 0.8 мм | H76: =SUMIFS($F$35:$F$65,$C$35:$C$65,"=500",$B$35:$B$65,AM62,$D$35:$D$65,AJ76,$E$35:$E$65,AI76) -> 0 | I76: =AJ76 -> 0.8 | K76: =AK76 -> 1.2384 | L76: =SUMIFS($L$35:$L$65,$B$35:$B$65,AM76,$C$35:$C$65,"=500",$D$35:$D$65,AJ76,$E$35:$E$65,AI76) -> 0 | O76: =SUMIFS($O$35:$O$65,$B$35:$B$65,AM76,$C$35:$C$65,"=500",$D$35:$D$65,AJ76,$E$35:$E$65,AI76) -> 0 | R76: =AC76+AC77-AB76 -> 0 | U76: =SUMIFS($U$35:$U$65,$B$35:$B$65,AM76,$C$35:$C$65,"=500",$D$35:$D$65,AJ76,$E$35:$E$65,AI76) -> 0 | Y76: =SUMIFS($Y$35:$Y$65,$B$35:$B$65,AM76,$C$35:$C$65,"=500",$D$35:$D$65,AJ76,$E$35:$E$65,AI76) -> 0 | AA76: =AC76+AC77-AB76 -> 0 | AB76: =AG76*AO76/1000/2*AK76 -> 0 | AC76: =SUMIFS($Z$35:$Z$65,$B$35:$B$65,AM76,$C$35:$C$65,"=500",$D$35:$D$65,AJ76,$E$35:$E$65,AI76) -> 0 | AG76: =SUMIFS($H$9:$H$31,$E$9:$E$31,AI76) -> 0 | AH76: Труба 25х25х0,8 | AI76: Труба 25х25 чм, 0.8 мм | AJ76: 0.8 | AK76: 1.2384 | AL76: 0.6192 | AM76: 6000 | AN76: <>6000 | AO76: 5
A77: =IF(U78=0,"z"," ") -> z | G77: Остатки | L77: =SUMIFS($L$35:$L$65,$B$35:$B$65,AN76,$C$35:$C$65,"=500",$D$35:$D$65,AJ76,$E$35:$E$65,AI76) -> 0 | O77: =SUMIFS($O$35:$O$65,$B$35:$B$65,AN76,$C$35:$C$65,"=500",$D$35:$D$65,AJ76,$E$35:$E$65,AI76) -> 0 | U77: =SUMIFS($U$35:$U$65,$B$35:$B$65,AN76,C26:C56,"=500",$D$35:$D$65,AJ76,$E$35:$E$65,AI76) -> 0 | Y77: =SUMIFS($Y$35:$Y$65,$B$35:$B$65,AN76,$C$35:$C$65,"=500",$D$35:$D$65,AJ76,$E$35:$E$65,AI76) -> 0 | AC77: =SUMIFS($Z$35:$Z$65,$B$35:$B$65,AN76,$C$35:$C$65,"=500",$D$35:$D$65,AJ76,$E$35:$E$65,AI76) -> 0
A78: =IF(U78=0,"z"," ") -> z | G78: общая | L78: =L76+L77 -> 0 | O78: =O76+O77 -> 0 | R78: =R76 -> 0 | U78: =U76+U77+AB76 -> 0 | Y78: =Y76+Y77 -> 0
A79: =IF(U81=0,"z"," ") -> z | F79: =AI79 -> Труба 25х25 чм, 1.5 мм | H79: =SUMIFS($F$35:$F$65,$C$35:$C$65,"=500",$B$35:$B$65,AM65,$D$35:$D$65,AJ79,$E$35:$E$65,AI79) -> 0 | I79: =AJ79 -> 1.5 | K79: =AK79 -> 2.22 | L79: =SUMIFS($L$35:$L$65,$B$35:$B$65,AM79,$C$35:$C$65,"=500",$D$35:$D$65,AJ79,$E$35:$E$65,AI79) -> 0 | O79: =SUMIFS($O$35:$O$65,$B$35:$B$65,AM79,$C$35:$C$65,"=500",$D$35:$D$65,AJ79,$E$35:$E$65,AI79) -> 0 | R79: =AC79+AC80-AB79 -> 0 | U79: =SUMIFS($U$35:$U$65,$B$35:$B$65,AM79,$C$35:$C$65,"=500",$D$35:$D$65,AJ79,$E$35:$E$65,AI79) -> 0 | Y79: =SUMIFS($Y$35:$Y$65,$B$35:$B$65,AM79,$C$35:$C$65,"=500",$D$35:$D$65,AJ79,$E$35:$E$65,AI79) -> 0 | AA79: =AC79+AC80-AB79 -> 0 | AB79: =AG79*AO79/1000/2*AK79 -> 0 | AC79: =SUMIFS($Z$35:$Z$65,$B$35:$B$65,AM79,$C$35:$C$65,"=500",$D$35:$D$65,AJ79,$E$35:$E$65,AI79) -> 0 | AG79: =SUMIFS($H$9:$H$31,$E$9:$E$31,AI79) -> 0 | AH79: Труба 25х25х1,5 | AI79: Труба 25х25 чм, 1.5 мм | AJ79: 1.5 | AK79: 2.22 | AL79: 1.11 | AM79: 6000 | AN79: <>6000 | AO79: 5
A80: =IF(U81=0,"z"," ") -> z | G80: Остатки | L80: =SUMIFS($L$35:$L$65,$B$35:$B$65,AN79,$C$35:$C$65,"=500",$D$35:$D$65,AJ79,$E$35:$E$65,AI79) -> 0 | O80: =SUMIFS($O$35:$O$65,$B$35:$B$65,AN79,$C$35:$C$65,"=500",$D$35:$D$65,AJ79,$E$35:$E$65,AI79) -> 0 | U80: =SUMIFS($U$35:$U$65,$B$35:$B$65,AN79,C29:C59,"=500",$D$35:$D$65,AJ79,$E$35:$E$65,AI79) -> 0 | Y80: =SUMIFS($Y$35:$Y$65,$B$35:$B$65,AN79,$C$35:$C$65,"=500",$D$35:$D$65,AJ79,$E$35:$E$65,AI79) -> 0 | AC80: =SUMIFS($Z$35:$Z$65,$B$35:$B$65,AN79,$C$35:$C$65,"=500",$D$35:$D$65,AJ79,$E$35:$E$65,AI79) -> 0
A81: =IF(U81=0,"z"," ") -> z | G81: общая | L81: =L79+L80 -> 0 | O81: =O79+O80 -> 0 | R81: =R79 -> 0 | U81: =U79+U80+AB79 -> 0 | Y81: =Y79+Y80 -> 0
A82: =IF(U84=0,"z"," ") -> z | F82: =AI82 -> Труба 25х28 чм, 2.0 мм | H82: =SUMIFS($F$35:$F$65,$C$35:$C$65,"=500",$B$35:$B$65,AM68,$D$35:$D$65,AJ82,$E$35:$E$65,AI82) -> 0 | I82: =AJ82 -> 2 | K82: =AK82 -> 0 | L82: =SUMIFS($L$35:$L$65,$B$35:$B$65,AM82,$C$35:$C$65,"=500",$D$35:$D$65,AJ82,$E$35:$E$65,AI82) -> 0 | O82: =SUMIFS($O$35:$O$65,$B$35:$B$65,AM82,$C$35:$C$65,"=500",$D$35:$D$65,AJ82,$E$35:$E$65,AI82) -> 0 | R82: =AC82+AC83-AB82 -> 0 | U82: =SUMIFS($U$35:$U$65,$B$35:$B$65,AM82,$C$35:$C$65,"=500",$D$35:$D$65,AJ82,$E$35:$E$65,AI82) -> 0 | Y82: =SUMIFS($Y$35:$Y$65,$B$35:$B$65,AM82,$C$35:$C$65,"=500",$D$35:$D$65,AJ82,$E$35:$E$65,AI82) -> 0 | AA82: =AC82+AC83-AB82 -> 0 | AB82: =AG82*AO82/1000/2*AK82 -> 0 | AC82: =SUMIFS($Z$35:$Z$65,$B$35:$B$65,AM82,$C$35:$C$65,"=500",$D$35:$D$65,AJ82,$E$35:$E$65,AI82) -> 0 | AG82: =SUMIFS($H$9:$H$31,$E$9:$E$31,AI82) -> 0 | AH82: Труба 25х28х2 | AI82: Труба 25х28 чм, 2.0 мм | AJ82: 2 | AM82: 6000 | AN82: <>6000 | AO82: 5
A83: =IF(U84=0,"z"," ") -> z | G83: Остатки | L83: =SUMIFS($L$35:$L$65,$B$35:$B$65,AN82,$C$35:$C$65,"=500",$D$35:$D$65,AJ82,$E$35:$E$65,AI82) -> 0 | O83: =SUMIFS($O$35:$O$65,$B$35:$B$65,AN82,$C$35:$C$65,"=500",$D$35:$D$65,AJ82,$E$35:$E$65,AI82) -> 0 | U83: =SUMIFS($U$35:$U$65,$B$35:$B$65,AN82,C32:C62,"=500",$D$35:$D$65,AJ82,$E$35:$E$65,AI82) -> 0 | Y83: =SUMIFS($Y$35:$Y$65,$B$35:$B$65,AN82,$C$35:$C$65,"=500",$D$35:$D$65,AJ82,$E$35:$E$65,AI82) -> 0 | AC83: =SUMIFS($Z$35:$Z$65,$B$35:$B$65,AN82,$C$35:$C$65,"=500",$D$35:$D$65,AJ82,$E$35:$E$65,AI82) -> 0
A84: =IF(U84=0,"z"," ") -> z | G84: общая | L84: =L82+L83 -> 0 | O84: =O82+O83 -> 0 | R84: =R82 -> 0 | U84: =U82+U83+AB82 -> 0 | Y84: =Y82+Y83 -> 0
A85: =IF(U87=0,"z"," ") ->  | F85: =AI85 -> Труба 30х20 чм, 1.0 мм | H85: =SUMIFS($F$35:$F$65,$C$35:$C$65,"=500",$B$35:$B$65,AM71,$D$35:$D$65,AJ85,$E$35:$E$65,AI85) -> 0 | I85: =AJ85 -> 1 | K85: =AK85 -> 1.572 | L85: =SUMIFS($L$35:$L$65,$B$35:$B$65,AM85,$C$35:$C$65,"=500",$D$35:$D$65,AJ85,$E$35:$E$65,AI85) -> 23.58 | O85: =SUMIFS($O$35:$O$65,$B$35:$B$65,AM85,$C$35:$C$65,"=500",$D$35:$D$65,AJ85,$E$35:$E$65,AI85) -> 1.0295814 | R85: =AC85+AC86-AB85 -> 28.1921694 | U85: =SUMIFS($U$35:$U$65,$B$35:$B$65,AM85,$C$35:$C$65,"=500",$D$35:$D$65,AJ85,$E$35:$E$65,AI85) -> 0.861456 | Y85: =SUMIFS($Y$35:$Y$65,$B$35:$B$65,AM85,$C$35:$C$65,"=500",$D$35:$D$65,AJ85,$E$35:$E$65,AI85) -> 22.5504186 | AA85: =AC85+AC86-AB85 -> 28.1921694 | AB85: =AG85*AO85/1000/2*AK85 -> 0 | AC85: =SUMIFS($Z$35:$Z$65,$B$35:$B$65,AM85,$C$35:$C$65,"=500",$D$35:$D$65,AJ85,$E$35:$E$65,AI85) -> 21.6889626 | AG85: =SUMIFS($H$9:$H$31,$E$9:$E$31,AI85) -> 0 | AH85: Труба 30х20х1 | AI85: Труба 30х20 чм, 1.0 мм | AJ85: 1 | AK85: 1.572 | AL85: 0.786 | AM85: 6000 | AN85: =CONCATENATE("<>",AM85) -> <>6000 | AO85: 5
A86: =IF(U87=0,"z"," ") ->  | G86: Остатки | L86: =SUMIFS($L$35:$L$65,$B$35:$B$65,AN85,$C$35:$C$65,"=500",$D$35:$D$65,AJ85,$E$35:$E$65,AI85) -> 8.87394 | O86: =SUMIFS($O$35:$O$65,$B$35:$B$65,AN85,$C$35:$C$65,"=500",$D$35:$D$65,AJ85,$E$35:$E$65,AI85) -> 1.5061332 | U86: =SUMIFS($U$35:$U$65,$B$35:$B$65,AN85,C35:C65,"=500",$D$35:$D$65,AJ85,$E$35:$E$65,AI85) -> 0.8646 | Y86: =SUMIFS($Y$35:$Y$65,$B$35:$B$65,AN85,$C$35:$C$65,"=500",$D$35:$D$65,AJ85,$E$35:$E$65,AI85) -> 7.3678068 | AC86: =SUMIFS($Z$35:$Z$65,$B$35:$B$65,AN85,$C$35:$C$65,"=500",$D$35:$D$65,AJ85,$E$35:$E$65,AI85) -> 6.5032068
A87: =IF(U87=0,"z"," ") ->  | G87: общая | L87: =L85+L86 -> 32.45394 | O87: =O85+O86 -> 2.5357146 | R87: =R85 -> 28.1921694 | U87: =U85+U86+AB85 -> 1.726056 | Y87: =Y85+Y86 -> 29.9182254
A88: =IF(U90=0,"z"," ") ->  | F88: =AI88 -> Труба 40х20 чм, 1.5 мм | H88: =SUMIFS($F$35:$F$65,$C$35:$C$65,"=500",$B$35:$B$65,AM74,$D$35:$D$65,AJ88,$E$35:$E$65,AI88) -> 0 | I88: =AJ88 -> 1.5 | K88: =AK88 -> 2.88 | L88: =SUMIFS($L$35:$L$65,$B$35:$B$65,AM88,$C$35:$C$65,"=500",$D$35:$D$65,AJ88,$E$35:$E$65,AI88) -> 86.4 | O88: =SUMIFS($O$35:$O$65,$B$35:$B$65,AM88,$C$35:$C$65,"=500",$D$35:$D$65,AJ88,$E$35:$E$65,AI88) -> 2.747808 | R88: =AC88+AC89-AB88 -> 160.375104 | U88: =SUMIFS($U$35:$U$65,$B$35:$B$65,AM88,$C$35:$C$65,"=500",$D$35:$D$65,AJ88,$E$35:$E$65,AI88) -> 0.74304 | Y88: =SUMIFS($Y$35:$Y$65,$B$35:$B$65,AM88,$C$35:$C$65,"=500",$D$35:$D$65,AJ88,$E$35:$E$65,AI88) -> 83.652192 | AA88: =AC88+AC89-AB88 -> 160.375104 | AB88: =AG88*AO88/1000/2*AK88 -> 0 | AC88: =SUMIFS($Z$35:$Z$65,$B$35:$B$65,AM88,$C$35:$C$65,"=500",$D$35:$D$65,AJ88,$E$35:$E$65,AI88) -> 82.909152 | AG88: =SUMIFS($H$9:$H$31,$E$9:$E$31,AI88) -> 0 | AH88: Труба 40х20х1,5 | AI88: Труба 40х20 чм, 1.5 мм | AJ88: 1.5 | AK88: 2.88 | AL88: 1.44 | AM88: 6000 | AN88: =CONCATENATE("<>",AM88) -> <>6000 | AO88: 5
A89: =IF(U90=0,"z"," ") ->  | G89: Остатки | L89: =SUMIFS($L$35:$L$65,$B$35:$B$65,AN88,$C$35:$C$65,"=500",$D$35:$D$65,AJ88,$E$35:$E$65,AI88) -> 80.9568 | O89: =SUMIFS($O$35:$O$65,$B$35:$B$65,AN88,$C$35:$C$65,"=500",$D$35:$D$65,AJ88,$E$35:$E$65,AI88) -> 2.747808 | U89: =SUMIFS($U$35:$U$65,$B$35:$B$65,AN88,C38:C68,"=500",$D$35:$D$65,AJ88,$E$35:$E$65,AI88) -> 0 | Y89: =SUMIFS($Y$35:$Y$65,$B$35:$B$65,AN88,$C$35:$C$65,"=500",$D$35:$D$65,AJ88,$E$35:$E$65,AI88) -> 78.208992 | AC89: =SUMIFS($Z$35:$Z$65,$B$35:$B$65,AN88,$C$35:$C$65,"=500",$D$35:$D$65,AJ88,$E$35:$E$65,AI88) -> 77.465952
A90: =IF(U90=0,"z"," ") ->  | G90: общая | L90: =L88+L89 -> 167.3568 | O90: =O88+O89 -> 5.495616 | R90: =R88 -> 160.375104 | U90: =U88+U89+AB88 -> 0.74304 | Y90: =Y88+Y89 -> 161.861184
A91: =IF(U93=0,"z"," ") ->  | F91: =AI91 -> Труба 30х50 чм, 2.0 мм | H91: =SUMIFS($F$35:$F$65,$C$35:$C$65,"=500",$B$35:$B$65,AM77,$D$35:$D$65,AJ91,$E$35:$E$65,AI91) -> 0 | I91: =AJ91 -> 2 | K91: =AK91 -> 4.89 | L91: =SUMIFS($L$35:$L$65,$B$35:$B$65,AM91,$C$35:$C$65,"=500",$D$35:$D$65,AJ91,$E$35:$E$65,AI91) -> 0 | O91: =SUMIFS($O$35:$O$65,$B$35:$B$65,AM91,$C$35:$C$65,"=500",$D$35:$D$65,AJ91,$E$35:$E$65,AI91) -> 0 | R91: =AC91+AC92-AB91 -> -0.61125 | U91: =SUMIFS($U$35:$U$65,$B$35:$B$65,AM91,$C$35:$C$65,"=500",$D$35:$D$65,AJ91,$E$35:$E$65,AI91) -> 0 | Y91: =SUMIFS($Y$35:$Y$65,$B$35:$B$65,AM91,$C$35:$C$65,"=500",$D$35:$D$65,AJ91,$E$35:$E$65,AI91) -> 0 | AA91: =AC91+AC92-AB91 -> -0.61125 | AB91: =AG91*AO91/1000/2*AK91 -> 0.61125 | AC91: =SUMIFS($Z$35:$Z$65,$B$35:$B$65,AM91,$C$35:$C$65,"=500",$D$35:$D$65,AJ91,$E$35:$E$65,AI91) -> 0 | AG91: =SUMIFS($H$9:$H$31,$E$9:$E$31,AI91) -> 50 | AH91: Труба 30х50х2 | AI91: Труба 30х50 чм, 2.0 мм | AJ91: 2 | AK91: 4.89 | AL91: 2.449 | AM91: 6000 | AN91: =CONCATENATE("<>",AM91) -> <>6000 | AO91: 5
A92: =IF(U93=0,"z"," ") ->  | G92: Остатки | L92: =SUMIFS($L$35:$L$65,$B$35:$B$65,AN91,$C$35:$C$65,"=500",$D$35:$D$65,AJ91,$E$35:$E$65,AI91) -> 0 | O92: =SUMIFS($O$35:$O$65,$B$35:$B$65,AN91,$C$35:$C$65,"=500",$D$35:$D$65,AJ91,$E$35:$E$65,AI91) -> 0 | U92: =SUMIFS($U$35:$U$65,$B$35:$B$65,AN91,C41:C71,"=500",$D$35:$D$65,AJ91,$E$35:$E$65,AI91) -> 0 | Y92: =SUMIFS($Y$35:$Y$65,$B$35:$B$65,AN91,$C$35:$C$65,"=500",$D$35:$D$65,AJ91,$E$35:$E$65,AI91) -> 0 | AC92: =SUMIFS($Z$35:$Z$65,$B$35:$B$65,AN91,$C$35:$C$65,"=500",$D$35:$D$65,AJ91,$E$35:$E$65,AI91) -> 0
A93: =IF(U93=0,"z"," ") ->  | G93: общая | L93: =L91+L92 -> 0 | O93: =O91+O92 -> 0 | R93: =R91 -> -0.61125 | U93: =U91+U92+AB91 -> 0.61125 | Y93: =Y91+Y92 -> 0
A94: =IF(U96=0,"z"," ") -> z | F94: =AI94 -> Труба 40х20 чм, 1.0 мм | H94: =SUMIFS($F$35:$F$65,$C$35:$C$65,"=500",$B$35:$B$65,AM80,$D$35:$D$65,AJ94,$E$35:$E$65,AI94) -> 0 | I94: =AJ94 -> 1 | K94: =AK94 -> 1.884 | L94: =SUMIFS($L$35:$L$65,$B$35:$B$65,AM94,$C$35:$C$65,"=500",$D$35:$D$65,AJ94,$E$35:$E$65,AI94) -> 0 | O94: =SUMIFS($O$35:$O$65,$B$35:$B$65,AM94,$C$35:$C$65,"=500",$D$35:$D$65,AJ94,$E$35:$E$65,AI94) -> 0 | R94: =AC94+AC95-AB94 -> 0 | U94: =SUMIFS($U$35:$U$65,$B$35:$B$65,AM94,$C$35:$C$65,"=500",$D$35:$D$65,AJ94,$E$35:$E$65,AI94) -> 0 | Y94: =SUMIFS($Y$35:$Y$65,$B$35:$B$65,AM94,$C$35:$C$65,"=500",$D$35:$D$65,AJ94,$E$35:$E$65,AI94) -> 0 | AA94: =AC94+AC95-AB94 -> 0 | AB94: =AG94*AO94/1000/2*AK94 -> 0 | AC94: =SUMIFS($Z$35:$Z$65,$B$35:$B$65,AM94,$C$35:$C$65,"=500",$D$35:$D$65,AJ94,$E$35:$E$65,AI94) -> 0 | AG94: =SUMIFS($H$9:$H$31,$E$9:$E$31,AI94) -> 0 | AH94: Труба 40х20х1 | AI94: Труба 40х20 чм, 1.0 мм | AJ94: 1 | AK94: 1.884 | AL94: 0.942 | AM94: 6000 | AN94: <>6000 | AO94: 5
A95: =IF(U96=0,"z"," ") -> z | G95: Остатки | L95: =SUMIFS($L$35:$L$65,$B$35:$B$65,AN94,$C$35:$C$65,"=500",$D$35:$D$65,AJ94,$E$35:$E$65,AI94) -> 0 | O95: =SUMIFS($O$35:$O$65,$B$35:$B$65,AN94,$C$35:$C$65,"=500",$D$35:$D$65,AJ94,$E$35:$E$65,AI94) -> 0 | U95: =SUMIFS($U$35:$U$65,$B$35:$B$65,AN94,C44:C74,"=500",$D$35:$D$65,AJ94,$E$35:$E$65,AI94) -> 0 | Y95: =SUMIFS($Y$35:$Y$65,$B$35:$B$65,AN94,$C$35:$C$65,"=500",$D$35:$D$65,AJ94,$E$35:$E$65,AI94) -> 0 | AC95: =SUMIFS($Z$35:$Z$65,$B$35:$B$65,AN94,$C$35:$C$65,"=500",$D$35:$D$65,AJ94,$E$35:$E$65,AI94) -> 0
A96: =IF(U96=0,"z"," ") -> z | G96: общая | L96: =L94+L95 -> 0 | O96: =O94+O95 -> 0 | R96: =R94 -> 0 | U96: =U94+U95+AB94 -> 0 | Y96: =Y94+Y95 -> 0
A97: =IF(U99=0,"z"," ") -> z | F97: =AI97 -> Труба 15х15 чм, 1.0 мм | H97: =SUMIFS($F$35:$F$65,$C$35:$C$65,"=500",$B$35:$B$65,AM83,$D$35:$D$65,AJ97,$E$35:$E$65,AI97) -> 0 | I97: =AJ97 -> 1 | K97: =AK97 -> 0.852 | L97: =SUMIFS($L$35:$L$65,$B$35:$B$65,AM97,$C$35:$C$65,"=500",$D$35:$D$65,AJ97,$E$35:$E$65,AI97) -> 0 | O97: =SUMIFS($O$35:$O$65,$B$35:$B$65,AM97,$C$35:$C$65,"=500",$D$35:$D$65,AJ97,$E$35:$E$65,AI97) -> 0 | R97: =AC97+AC98-AB97 -> 0 | U97: =SUMIFS($U$35:$U$65,$B$35:$B$65,AM97,$C$35:$C$65,"=500",$D$35:$D$65,AJ97,$E$35:$E$65,AI97) -> 0 | Y97: =SUMIFS($Y$35:$Y$65,$B$35:$B$65,AM97,$C$35:$C$65,"=500",$D$35:$D$65,AJ97,$E$35:$E$65,AI97) -> 0 | AA97: =AC97+AC98-AB97 -> 0 | AB97: =AG97*AO97/1000/2*AK97 -> 0 | AC97: =SUMIFS($Z$35:$Z$65,$B$35:$B$65,AM97,$C$35:$C$65,"=500",$D$35:$D$65,AJ97,$E$35:$E$65,AI97) -> 0 | AG97: =SUMIFS($H$9:$H$31,$E$9:$E$31,AI97) -> 0 | AH97: Труба 15х15х1 | AI97: Труба 15х15 чм, 1.0 мм | AJ97: 1 | AK97: 0.852 | AL97: 0.476 | AM97: 6000 | AN97: =CONCATENATE("<>",AM97) -> <>6000 | AO97: 5
A98: =IF(U99=0,"z"," ") -> z | G98: Остатки | L98: =SUMIFS($L$35:$L$65,$B$35:$B$65,AN97,$C$35:$C$65,"=500",$D$35:$D$65,AJ97,$E$35:$E$65,AI97) -> 0 | O98: =SUMIFS($O$35:$O$65,$B$35:$B$65,AN97,$C$35:$C$65,"=500",$D$35:$D$65,AJ97,$E$35:$E$65,AI97) -> 0 | U98: =SUMIFS($U$35:$U$65,$B$35:$B$65,AN97,C47:C77,"=500",$D$35:$D$65,AJ97,$E$35:$E$65,AI97) -> 0 | Y98: =SUMIFS($Y$35:$Y$65,$B$35:$B$65,AN97,$C$35:$C$65,"=500",$D$35:$D$65,AJ97,$E$35:$E$65,AI97) -> 0 | AC98: =SUMIFS($Z$35:$Z$65,$B$35:$B$65,AN97,$C$35:$C$65,"=500",$D$35:$D$65,AJ97,$E$35:$E$65,AI97) -> 0
A99: =IF(U99=0,"z"," ") -> z | G99: общая | L99: =L97+L98 -> 0 | O99: =O97+O98 -> 0 | R99: =R97 -> 0 | U99: =U97+U98+AB97 -> 0 | Y99: =Y97+Y98 -> 0
A100: =IF(U102=0,"z"," ") -> z | F100: =AI100 -> Труба 25х50 чм, 1.2 мм | H100: =SUMIFS($F$35:$F$65,$C$35:$C$65,"=500",$B$35:$B$65,AM86,$D$35:$D$65,AJ100,$E$35:$E$65,AI100) -> 0 | I100: =AJ100 -> 1.2 | K100: =AK100 -> 2.7 | L100: =SUMIFS($L$35:$L$65,$B$35:$B$65,AM100,$C$35:$C$65,"=500",$D$35:$D$65,AJ100,$E$35:$E$65,AI100) -> 0 | O100: =SUMIFS($O$35:$O$65,$B$35:$B$65,AM100,$C$35:$C$65,"=500",$D$35:$D$65,AJ100,$E$35:$E$65,AI100) -> 0 | R100: =AC100+AC101-AB100 -> 0 | U100: =SUMIFS($U$35:$U$65,$B$35:$B$65,AM100,$C$35:$C$65,"=500",$D$35:$D$65,AJ100,$E$35:$E$65,AI100) -> 0 | Y100: =SUMIFS($Y$35:$Y$65,$B$35:$B$65,AM100,$C$35:$C$65,"=500",$D$35:$D$65,AJ100,$E$35:$E$65,AI100) -> 0 | AA100: =AC100+AC101-AB100 -> 0 | AB100: =AG100*AO100/1000/2*AK100 -> 0 | AC100: =SUMIFS($Z$35:$Z$65,$B$35:$B$65,AM100,$C$35:$C$65,"=500",$D$35:$D$65,AJ100,$E$35:$E$65,AI100) -> 0 | AG100: =SUMIFS($H$9:$H$31,$E$9:$E$31,AI100) -> 0 | AH100: Труба 25х50х1,2 | AI100: Труба 25х50 чм, 1.2 мм | AJ100: 1.2 | AK100: 2.7 | AL100: 1.35 | AM100: 6000 | AN100: =CONCATENATE("<>",AM100) -> <>6000 | AO100: 5
A101: =IF(U102=0,"z"," ") -> z | G101: Остатки | L101: =SUMIFS($L$35:$L$65,$B$35:$B$65,AN100,$C$35:$C$65,"=500",$D$35:$D$65,AJ100,$E$35:$E$65,AI100) -> 0 | O101: =SUMIFS($O$35:$O$65,$B$35:$B$65,AN100,$C$35:$C$65,"=500",$D$35:$D$65,AJ100,$E$35:$E$65,AI100) -> 0 | U101: =SUMIFS($U$35:$U$65,$B$35:$B$65,AN100,C50:C80,"=500",$D$35:$D$65,AJ100,$E$35:$E$65,AI100) -> 0 | Y101: =SUMIFS($Y$35:$Y$65,$B$35:$B$65,AN100,$C$35:$C$65,"=500",$D$35:$D$65,AJ100,$E$35:$E$65,AI100) -> 0 | AC101: =SUMIFS($Z$35:$Z$65,$B$35:$B$65,AN100,$C$35:$C$65,"=500",$D$35:$D$65,AJ100,$E$35:$E$65,AI100) -> 0
A102: =IF(U102=0,"z"," ") -> z | G102: общая | L102: =L100+L101 -> 0 | O102: =O100+O101 -> 0 | R102: =R100 -> 0 | U102: =U100+U101+AB100 -> 0 | Y102: =Y100+Y101 -> 0
A103: =IF(U105=0,"z"," ") -> z | F103: =AI103 -> Труба 30х15 чм, 1.2 мм | H103: =SUMIFS($F$35:$F$65,$C$35:$C$65,"=500",$B$35:$B$65,AM89,$D$35:$D$65,AJ103,$E$35:$E$65,AI103) -> 0 | I103: =AJ103 -> 1.2 | K103: =AK103 -> 1.566 | L103: =SUMIFS($L$35:$L$65,$B$35:$B$65,AM103,$C$35:$C$65,"=500",$D$35:$D$65,AJ103,$E$35:$E$65,AI103) -> 0 | O103: =SUMIFS($O$35:$O$65,$B$35:$B$65,AM103,$C$35:$C$65,"=500",$D$35:$D$65,AJ103,$E$35:$E$65,AI103) -> 0 | R103: =AC103+AC104-AB103 -> 0 | U103: =SUMIFS($U$35:$U$65,$B$35:$B$65,AM103,$C$35:$C$65,"=500",$D$35:$D$65,AJ103,$E$35:$E$65,AI103) -> 0 | Y103: =SUMIFS($Y$35:$Y$65,$B$35:$B$65,AM103,$C$35:$C$65,"=500",$D$35:$D$65,AJ103,$E$35:$E$65,AI103) -> 0 | AA103: =AC103+AC104-AB103 -> 0 | AB103: =AG103*AO103/1000/2*AK103 -> 0 | AC103: =SUMIFS($Z$35:$Z$65,$B$35:$B$65,AM103,$C$35:$C$65,"=500",$D$35:$D$65,AJ103,$E$35:$E$65,AI103) -> 0 | AG103: =SUMIFS($H$9:$H$31,$E$9:$E$31,AI103) -> 0 | AH103: Труба 30х15х1,2 | AI103: Труба 30х15 чм, 1.2 мм | AJ103: 1.2 | AK103: 1.566 | AL103: 0.783 | AM103: 6000 | AN103: =CONCATENATE("<>",AM103) -> <>6000 | AO103: 5
A104: =IF(U105=0,"z"," ") -> z | G104: Остатки | L104: =SUMIFS($L$35:$L$65,$B$35:$B$65,AN103,$C$35:$C$65,"=500",$D$35:$D$65,AJ103,$E$35:$E$65,AI103) -> 0 | O104: =SUMIFS($O$35:$O$65,$B$35:$B$65,AN103,$C$35:$C$65,"=500",$D$35:$D$65,AJ103,$E$35:$E$65,AI103) -> 0 | U104: =SUMIFS($U$35:$U$65,$B$35:$B$65,AN103,C53:C83,"=500",$D$35:$D$65,AJ103,$E$35:$E$65,AI103) -> 0 | Y104: =SUMIFS($Y$35:$Y$65,$B$35:$B$65,AN103,$C$35:$C$65,"=500",$D$35:$D$65,AJ103,$E$35:$E$65,AI103) -> 0 | AC104: =SUMIFS($Z$35:$Z$65,$B$35:$B$65,AN103,$C$35:$C$65,"=500",$D$35:$D$65,AJ103,$E$35:$E$65,AI103) -> 0
A105: =IF(U105=0,"z"," ") -> z | G105: общая | L105: =L103+L104 -> 0 | O105: =O103+O104 -> 0 | R105: =R103 -> 0 | U105: =U103+U104+AB103 -> 0 | Y105: =Y103+Y104 -> 0
A106: =IF(U108=0,"z"," ") -> z | F106: =AI106 -> Труба 40х20 чм, 2.0 мм | H106: =SUMIFS($F$35:$F$65,$C$35:$C$65,"=500",$B$35:$B$65,AM92,$D$35:$D$65,AJ106,$E$35:$E$65,AI106) -> 0 | I106: =AJ106 -> 2 | K106: =AK106 -> 3.4 | L106: =SUMIFS($L$35:$L$65,$B$35:$B$65,AM106,$C$35:$C$65,"=500",$D$35:$D$65,AJ106,$E$35:$E$65,AI106) -> 0 | O106: =SUMIFS($O$35:$O$65,$B$35:$B$65,AM106,$C$35:$C$65,"=500",$D$35:$D$65,AJ106,$E$35:$E$65,AI106) -> 0 | R106: =AC106+AC107-AB106 -> 0 | U106: =SUMIFS($U$35:$U$65,$B$35:$B$65,AM106,$C$35:$C$65,"=500",$D$35:$D$65,AJ106,$E$35:$E$65,AI106) -> 0 | Y106: =SUMIFS($Y$35:$Y$65,$B$35:$B$65,AM106,$C$35:$C$65,"=500",$D$35:$D$65,AJ106,$E$35:$E$65,AI106) -> 0 | AA106: =AC106+AC107-AB106 -> 0 | AB106: =AG106*AO106/1000/2*AK106 -> 0 | AC106: =SUMIFS($Z$35:$Z$65,$B$35:$B$65,AM106,$C$35:$C$65,"=500",$D$35:$D$65,AJ106,$E$35:$E$65,AI106) -> 0 | AG106: =SUMIFS($H$9:$H$31,$E$9:$E$31,AI106) -> 0 | AH106: Труба 40х20х2 | AI106: Труба 40х20 чм, 2.0 мм | AJ106: 2 | AK106: 3.4 | AL106: 1.7 | AM106: 6000 | AN106: <>6000 | AO106: 5
A107: =IF(U108=0,"z"," ") -> z | G107: Остатки | L107: =SUMIFS($L$35:$L$65,$B$35:$B$65,AN106,$C$35:$C$65,"=500",$D$35:$D$65,AJ106,$E$35:$E$65,AI106) -> 0 | O107: =SUMIFS($O$35:$O$65,$B$35:$B$65,AN106,$C$35:$C$65,"=500",$D$35:$D$65,AJ106,$E$35:$E$65,AI106) -> 0 | U107: =SUMIFS($U$35:$U$65,$B$35:$B$65,AN106,C56:C86,"=500",$D$35:$D$65,AJ106,$E$35:$E$65,AI106) -> 0 | Y107: =SUMIFS($Y$35:$Y$65,$B$35:$B$65,AN106,$C$35:$C$65,"=500",$D$35:$D$65,AJ106,$E$35:$E$65,AI106) -> 0 | AC107: =SUMIFS($Z$35:$Z$65,$B$35:$B$65,AN106,$C$35:$C$65,"=500",$D$35:$D$65,AJ106,$E$35:$E$65,AI106) -> 0
A108: =IF(U108=0,"z"," ") -> z | G108: общая | L108: =L106+L107 -> 0 | O108: =O106+O107 -> 0 | R108: =R106 -> 0 | U108: =U106+U107+AB106 -> 0 | Y108: =Y106+Y107 -> 0
A109: =IF(U111=0,"z"," ") -> z | F109: =AI109 -> Труба 40х25 чм, 2.0 мм | H109: =SUMIFS($F$35:$F$65,$C$35:$C$65,"=500",$B$35:$B$65,AM95,$D$35:$D$65,AJ109,$E$35:$E$65,AI109) -> 0 | I109: =AJ109 -> 2 | K109: =AK109 -> 4.08 | L109: =SUMIFS($L$35:$L$65,$B$35:$B$65,AM109,$C$35:$C$65,"=500",$D$35:$D$65,AJ109,$E$35:$E$65,AI109) -> 0 | O109: =SUMIFS($O$35:$O$65,$B$35:$B$65,AM109,$C$35:$C$65,"=500",$D$35:$D$65,AJ109,$E$35:$E$65,AI109) -> 0 | R109: =AC109+AC110-AB109 -> 0 | U109: =SUMIFS($U$35:$U$65,$B$35:$B$65,AM109,$C$35:$C$65,"=500",$D$35:$D$65,AJ109,$E$35:$E$65,AI109) -> 0 | Y109: =SUMIFS($Y$35:$Y$65,$B$35:$B$65,AM109,$C$35:$C$65,"=500",$D$35:$D$65,AJ109,$E$35:$E$65,AI109) -> 0 | AA109: =AC109+AC110-AB109 -> 0 | AB109: =AG109*AO109/1000/2*AK109 -> 0 | AC109: =SUMIFS($Z$35:$Z$65,$B$35:$B$65,AM109,$C$35:$C$65,"=500",$D$35:$D$65,AJ109,$E$35:$E$65,AI109) -> 0 | AG109: =SUMIFS($H$9:$H$31,$E$9:$E$31,AI109) -> 0 | AH109: Труба 40х25х | AI109: Труба 40х25 чм, 2.0 мм | AJ109: 2 | AK109: 4.08 | AL109: 2.04 | AM109: 6000 | AN109: <>6000 | AO109: 5
A110: =IF(U111=0,"z"," ") -> z | G110: Остатки | L110: =SUMIFS($L$35:$L$65,$B$35:$B$65,AN109,$C$35:$C$65,"=500",$D$35:$D$65,AJ109,$E$35:$E$65,AI109) -> 0 | O110: =SUMIFS($O$35:$O$65,$B$35:$B$65,AN109,$C$35:$C$65,"=500",$D$35:$D$65,AJ109,$E$35:$E$65,AI109) -> 0 | U110: =SUMIFS($U$35:$U$65,$B$35:$B$65,AN109,C59:C89,"=500",$D$35:$D$65,AJ109,$E$35:$E$65,AI109) -> 0 | Y110: =SUMIFS($Y$35:$Y$65,$B$35:$B$65,AN109,$C$35:$C$65,"=500",$D$35:$D$65,AJ109,$E$35:$E$65,AI109) -> 0 | AC110: =SUMIFS($Z$35:$Z$65,$B$35:$B$65,AN109,$C$35:$C$65,"=500",$D$35:$D$65,AJ109,$E$35:$E$65,AI109) -> 0
A111: =IF(U111=0,"z"," ") -> z | G111: общая | L111: =L109+L110 -> 0 | O111: =O109+O110 -> 0 | R111: =R109 -> 0 | U111: =U109+U110+AB109 -> 0 | Y111: =Y109+Y110 -> 0
A112: =IF(U114=0,"z"," ") -> z | F112: =AI112 -> Труба 60х30 чм, 2.0 мм | H112: =SUMIFS($F$35:$F$65,$C$35:$C$65,"=500",$B$35:$B$65,AM98,$D$35:$D$65,AJ112,$E$35:$E$65,AI112) -> 0 | I112: =AJ112 -> 2 | K112: =AK112 -> 5.3 | L112: =SUMIFS($L$35:$L$65,$B$35:$B$65,AM112,$C$35:$C$65,"=500",$D$35:$D$65,AJ112,$E$35:$E$65,AI112) -> 0 | O112: =SUMIFS($O$35:$O$65,$B$35:$B$65,AM112,$C$35:$C$65,"=500",$D$35:$D$65,AJ112,$E$35:$E$65,AI112) -> 0 | R112: =AC112+AC113-AB112 -> 0 | U112: =SUMIFS($U$35:$U$65,$B$35:$B$65,AM112,$C$35:$C$65,"=500",$D$35:$D$65,AJ112,$E$35:$E$65,AI112) -> 0 | Y112: =SUMIFS($Y$35:$Y$65,$B$35:$B$65,AM112,$C$35:$C$65,"=500",$D$35:$D$65,AJ112,$E$35:$E$65,AI112) -> 0 | AA112: =AC112+AC113-AB112 -> 0 | AB112: =AG112*AO112/1000/2*AK112 -> 0 | AC112: =SUMIFS($Z$35:$Z$65,$B$35:$B$65,AM112,$C$35:$C$65,"=500",$D$35:$D$65,AJ112,$E$35:$E$65,AI112) -> 0 | AG112: =SUMIFS($H$9:$H$31,$E$9:$E$31,AI112) -> 0 | AH112: Труба 60х30х2 | AI112: Труба 60х30 чм, 2.0 мм | AJ112: 2 | AK112: 5.3 | AL112: 2.65 | AM112: 6000 | AN112: <>6000 | AO112: 5
A113: =IF(U114=0,"z"," ") -> z | G113: Остатки | L113: =SUMIFS($L$35:$L$65,$B$35:$B$65,AN112,$C$35:$C$65,"=500",$D$35:$D$65,AJ112,$E$35:$E$65,AI112) -> 0 | O113: =SUMIFS($O$35:$O$65,$B$35:$B$65,AN112,$C$35:$C$65,"=500",$D$35:$D$65,AJ112,$E$35:$E$65,AI112) -> 0 | U113: =SUMIFS($U$35:$U$65,$B$35:$B$65,AN112,C62:C92,"=500",$D$35:$D$65,AJ112,$E$35:$E$65,AI112) -> 0 | Y113: =SUMIFS($Y$35:$Y$65,$B$35:$B$65,AN112,$C$35:$C$65,"=500",$D$35:$D$65,AJ112,$E$35:$E$65,AI112) -> 0 | AC113: =SUMIFS($Z$35:$Z$65,$B$35:$B$65,AN112,$C$35:$C$65,"=500",$D$35:$D$65,AJ112,$E$35:$E$65,AI112) -> 0
A114: =IF(U114=0,"z"," ") -> z | G114: общая | L114: =L112+L113 -> 0 | O114: =O112+O113 -> 0 | R114: =R112 -> 0 | U114: =U112+U113+AB112 -> 0 | Y114: =Y112+Y113 -> 0
A115: =IF(U117=0,"z"," ") -> z | F115: =AI115 -> 0 | H115: =SUMIFS($F$35:$F$65,$C$35:$C$65,"=500",$B$35:$B$65,AM101,$D$35:$D$65,AJ115,$E$35:$E$65,AI115) -> 0 | I115: =AJ115 -> 3 | K115: =AK115 -> 4.316 | L115: =SUMIFS($L$35:$L$65,$B$35:$B$65,AM115,$C$35:$C$65,"=500",$D$35:$D$65,AJ115,$E$35:$E$65,AI115) -> 0 | O115: =SUMIFS($O$35:$O$65,$B$35:$B$65,AM115,$C$35:$C$65,"=500",$D$35:$D$65,AJ115,$E$35:$E$65,AI115) -> 0 | R115: =AC115+AC116-AB115 -> 0 | U115: =SUMIFS($U$35:$U$65,$B$35:$B$65,AM115,$C$35:$C$65,"=500",$D$35:$D$65,AJ115,$E$35:$E$65,AI115) -> 0 | Y115: =SUMIFS($Y$35:$Y$65,$B$35:$B$65,AM115,$C$35:$C$65,"=500",$D$35:$D$65,AJ115,$E$35:$E$65,AI115) -> 0 | AA115: =AC115+AC116-AB115 -> 0 | AB115: =AG115*AO115/1000/2*AK115 -> 0 | AC115: =SUMIFS($Z$35:$Z$65,$B$35:$B$65,AM115,$C$35:$C$65,"=500",$D$35:$D$65,AJ115,$E$35:$E$65,AI115) -> 0 | AG115: =SUMIFS($H$9:$H$31,$E$9:$E$31,AI115) -> 0 | AH115: Труба ø 32,5х3 | AJ115: 3 | AK115: 4.316 | AL115: 2.158 | AM115: 6000 | AN115: <>6000 | AO115: 5
A116: =IF(U117=0,"z"," ") -> z | G116: Остатки | L116: =SUMIFS($L$35:$L$65,$B$35:$B$65,AN115,$C$35:$C$65,"=500",$D$35:$D$65,AJ115,$E$35:$E$65,AI115) -> 0 | O116: =SUMIFS($O$35:$O$65,$B$35:$B$65,AN115,$C$35:$C$65,"=500",$D$35:$D$65,AJ115,$E$35:$E$65,AI115) -> 0 | U116: =SUMIFS($U$35:$U$65,$B$35:$B$65,AN115,C65:C95,"=500",$D$35:$D$65,AJ115,$E$35:$E$65,AI115) -> 0 | Y116: =SUMIFS($Y$35:$Y$65,$B$35:$B$65,AN115,$C$35:$C$65,"=500",$D$35:$D$65,AJ115,$E$35:$E$65,AI115) -> 0 | AC116: =SUMIFS($Z$35:$Z$65,$B$35:$B$65,AN115,$C$35:$C$65,"=500",$D$35:$D$65,AJ115,$E$35:$E$65,AI115) -> 0
A117: =IF(U117=0,"z"," ") -> z | G117: общая | L117: =L115+L116 -> 0 | O117: =O115+O116 -> 0 | R117: =R115 -> 0 | U117: =U115+U116+AB115 -> 0 | Y117: =Y115+Y116 -> 0
A118: =IF(U120=0,"z"," ") ->  | F118: =AI118 -> Труба 20 чм, 1.0 мм | H118: =SUMIFS($F$35:$F$65,$C$35:$C$65,"=500",$B$35:$B$65,AM104,$D$35:$D$65,AJ118,$E$35:$E$65,AI118) -> 0 | I118: =AJ118 -> 1 | K118: =AK118 -> 0.98 | L118: =SUMIFS($L$35:$L$65,$B$35:$B$65,AM118,$C$35:$C$65,"=500",$D$35:$D$65,AJ118,$E$35:$E$65,AI118) -> 0 | O118: =SUMIFS($O$35:$O$65,$B$35:$B$65,AM118,$C$35:$C$65,"=500",$D$35:$D$65,AJ118,$E$35:$E$65,AI118) -> 0 | R118: =AC118+AC119-AB118 -> -0.4655 | U118: =SUMIFS($U$35:$U$65,$B$35:$B$65,AM118,$C$35:$C$65,"=500",$D$35:$D$65,AJ118,$E$35:$E$65,AI118) -> 0 | Y118: =SUMIFS($Y$35:$Y$65,$B$35:$B$65,AM118,$C$35:$C$65,"=500",$D$35:$D$65,AJ118,$E$35:$E$65,AI118) -> 0 | AA118: =AC118+AC119-AB118 -> -0.4655 | AB118: =AG118*AO118/1000/2*AK118 -> 0.4655 | AC118: =SUMIFS($Z$35:$Z$65,$B$35:$B$65,AM118,$C$35:$C$65,"=500",$D$35:$D$65,AJ118,$E$35:$E$65,AI118) -> 0 | AG118: =SUMIFS($H$9:$H$31,$E$9:$E$31,AI118) -> 190 | AH118: Труба ø 20х1 | AI118: Труба 20 чм, 1.0 мм | AJ118: 1 | AK118: 0.98 | AL118: 0.49 | AM118: 6000 | AN118: <>6000 | AO118: 5
A119: =IF(U120=0,"z"," ") ->  | G119: Остатки | L119: =SUMIFS($L$35:$L$65,$B$35:$B$65,AN118,$C$35:$C$65,"=500",$D$35:$D$65,AJ118,$E$35:$E$65,AI118) -> 0 | O119: =SUMIFS($O$35:$O$65,$B$35:$B$65,AN118,$C$35:$C$65,"=500",$D$35:$D$65,AJ118,$E$35:$E$65,AI118) -> 0 | U119: =SUMIFS($U$35:$U$65,$B$35:$B$65,AN118,C68:C98,"=500",$D$35:$D$65,AJ118,$E$35:$E$65,AI118) -> 0 | Y119: =SUMIFS($Y$35:$Y$65,$B$35:$B$65,AN118,$C$35:$C$65,"=500",$D$35:$D$65,AJ118,$E$35:$E$65,AI118) -> 0 | AC119: =SUMIFS($Z$35:$Z$65,$B$35:$B$65,AN118,$C$35:$C$65,"=500",$D$35:$D$65,AJ118,$E$35:$E$65,AI118) -> 0
A120: =IF(U120=0,"z"," ") ->  | G120: общая | L120: =L118+L119 -> 0 | O120: =O118+O119 -> 0 | R120: =R118 -> -0.4655 | U120: =U118+U119+AB118 -> 0.4655 | Y120: =Y118+Y119 -> 0
A121: =IF(U123=0,"z"," ") -> z | F121: =AI121 -> Труба 25 чм, 1.5 мм | H121: =SUMIFS($F$35:$F$65,$C$35:$C$65,"=500",$B$35:$B$65,AM107,$D$35:$D$65,AJ121,$E$35:$E$65,AI121) -> 0 | I121: =AJ121 -> 1.5 | K121: =AK121 -> 1.86 | L121: =SUMIFS($L$35:$L$65,$B$35:$B$65,AM121,$C$35:$C$65,"=500",$D$35:$D$65,AJ121,$E$35:$E$65,AI121) -> 0 | O121: =SUMIFS($O$35:$O$65,$B$35:$B$65,AM121,$C$35:$C$65,"=500",$D$35:$D$65,AJ121,$E$35:$E$65,AI121) -> 0 | R121: =AC121+AC122-AB121 -> 0 | U121: =SUMIFS($U$35:$U$65,$B$35:$B$65,AM121,$C$35:$C$65,"=500",$D$35:$D$65,AJ121,$E$35:$E$65,AI121) -> 0 | Y121: =SUMIFS($Y$35:$Y$65,$B$35:$B$65,AM121,$C$35:$C$65,"=500",$D$35:$D$65,AJ121,$E$35:$E$65,AI121) -> 0 | AA121: =AC121+AC122-AB121 -> 0 | AB121: =AG121*AO121/1000/2*AK121 -> 0 | AC121: =SUMIFS($Z$35:$Z$65,$B$35:$B$65,AM121,$C$35:$C$65,"=500",$D$35:$D$65,AJ121,$E$35:$E$65,AI121) -> 0 | AG121: =SUMIFS($H$9:$H$31,$E$9:$E$31,AI121) -> 0 | AH121: Труба ø 25х1,5 | AI121: Труба 25 чм, 1.5 мм | AJ121: 1.5 | AK121: 1.86 | AL121: 0.93 | AM121: 6000 | AN121: =CONCATENATE("<>",AM121) -> <>6000 | AO121: 5
A122: =IF(U123=0,"z"," ") -> z | G122: Остатки | L122: =SUMIFS($L$35:$L$65,$B$35:$B$65,AN121,$C$35:$C$65,"=500",$D$35:$D$65,AJ121,$E$35:$E$65,AI121) -> 0 | O122: =SUMIFS($O$35:$O$65,$B$35:$B$65,AN121,$C$35:$C$65,"=500",$D$35:$D$65,AJ121,$E$35:$E$65,AI121) -> 0 | U122: =SUMIFS($U$35:$U$65,$B$35:$B$65,AN121,C71:C101,"=500",$D$35:$D$65,AJ121,$E$35:$E$65,AI121) -> 0 | Y122: =SUMIFS($Y$35:$Y$65,$B$35:$B$65,AN121,$C$35:$C$65,"=500",$D$35:$D$65,AJ121,$E$35:$E$65,AI121) -> 0 | AC122: =SUMIFS($Z$35:$Z$65,$B$35:$B$65,AN121,$C$35:$C$65,"=500",$D$35:$D$65,AJ121,$E$35:$E$65,AI121) -> 0
A123: =IF(U123=0,"z"," ") -> z | G123: общая | L123: =L121+L122 -> 0 | O123: =O121+O122 -> 0 | R123: =R121 -> 0 | U123: =U121+U122+AB121 -> 0 | Y123: =Y121+Y122 -> 0
A124: =IF(U126=0,"z"," ") -> z | F124: =AI124 -> 0 | H124: =SUMIFS($F$35:$F$65,$C$35:$C$65,"=500",$B$35:$B$65,AM110,$D$35:$D$65,AJ124,$E$35:$E$65,AI124) -> 0 | I124: =AJ124 -> 3 | K124: =AK124 -> 2.32 | L124: =SUMIFS($L$35:$L$65,$B$35:$B$65,AM124,$C$35:$C$65,"=500",$D$35:$D$65,AJ124,$E$35:$E$65,AI124) -> 0 | O124: =SUMIFS($O$35:$O$65,$B$35:$B$65,AM124,$C$35:$C$65,"=500",$D$35:$D$65,AJ124,$E$35:$E$65,AI124) -> 0 | R124: =AC124+AC125-AB124 -> 0 | U124: =SUMIFS($U$35:$U$65,$B$35:$B$65,AM124,$C$35:$C$65,"=500",$D$35:$D$65,AJ124,$E$35:$E$65,AI124) -> 0 | Y124: =SUMIFS($Y$35:$Y$65,$B$35:$B$65,AM124,$C$35:$C$65,"=500",$D$35:$D$65,AJ124,$E$35:$E$65,AI124) -> 0 | AA124: =AC124+AC125-AB124 -> 0 | AB124: =AG124*AO124/1000/2*AK124 -> 0 | AC124: =SUMIFS($Z$35:$Z$65,$B$35:$B$65,AM124,$C$35:$C$65,"=500",$D$35:$D$65,AJ124,$E$35:$E$65,AI124) -> 0 | AG124: =SUMIFS($H$9:$H$31,$E$9:$E$31,AI124) -> 0 | AH124: Труба ДУ15 | AJ124: 3 | AK124: 2.32 | AL124: 1.16 | AM124: 6000 | AN124: <>6000 | AO124: 5
A125: =IF(U126=0,"z"," ") -> z | G125: Остатки | L125: =SUMIFS($L$35:$L$65,$B$35:$B$65,AN124,$C$35:$C$65,"=500",$D$35:$D$65,AJ124,$E$35:$E$65,AI124) -> 0 | O125: =SUMIFS($O$35:$O$65,$B$35:$B$65,AN124,$C$35:$C$65,"=500",$D$35:$D$65,AJ124,$E$35:$E$65,AI124) -> 0 | U125: =SUMIFS($U$35:$U$65,$B$35:$B$65,AN124,C74:C104,"=500",$D$35:$D$65,AJ124,$E$35:$E$65,AI124) -> 0 | Y125: =SUMIFS($Y$35:$Y$65,$B$35:$B$65,AN124,$C$35:$C$65,"=500",$D$35:$D$65,AJ124,$E$35:$E$65,AI124) -> 0 | AC125: =SUMIFS($Z$35:$Z$65,$B$35:$B$65,AN124,$C$35:$C$65,"=500",$D$35:$D$65,AJ124,$E$35:$E$65,AI124) -> 0
A126: =IF(U126=0,"z"," ") -> z | G126: общая | L126: =L124+L125 -> 0 | O126: =O124+O125 -> 0 | R126: =R124 -> 0 | U126: =U124+U125+AB124 -> 0 | Y126: =Y124+Y125 -> 0
A127: =IF(U129=0,"z"," ") -> z | F127: =AI127 -> 0 | H127: =SUMIFS($F$35:$F$65,$C$35:$C$65,"=500",$B$35:$B$65,AM113,$D$35:$D$65,AJ127,$E$35:$E$65,AI127) -> 0 | I127: =AJ127 -> 0 | K127: =AK127 -> 0 | L127: =SUMIFS($L$35:$L$65,$B$35:$B$65,AM127,$C$35:$C$65,"=500",$D$35:$D$65,AJ127,$E$35:$E$65,AI127) -> 0 | O127: =SUMIFS($O$35:$O$65,$B$35:$B$65,AM127,$C$35:$C$65,"=500",$D$35:$D$65,AJ127,$E$35:$E$65,AI127) -> 0 | R127: =AC127+AC128-AB127 -> 0 | U127: =SUMIFS($U$35:$U$65,$B$35:$B$65,AM127,$C$35:$C$65,"=500",$D$35:$D$65,AJ127,$E$35:$E$65,AI127) -> 0 | Y127: =SUMIFS($Y$35:$Y$65,$B$35:$B$65,AM127,$C$35:$C$65,"=500",$D$35:$D$65,AJ127,$E$35:$E$65,AI127) -> 0 | AA127: =AC127+AC128-AB127 -> 0 | AB127: =AG127*AO127/1000/2*AK127 -> 0 | AC127: =SUMIFS($Z$35:$Z$65,$B$35:$B$65,AM127,$C$35:$C$65,"=500",$D$35:$D$65,AJ127,$E$35:$E$65,AI127) -> 0
A128: =IF(U129=0,"z"," ") -> z | G128: Остатки | L128: =SUMIFS($L$35:$L$65,$B$35:$B$65,AN127,$C$35:$C$65,"=500",$D$35:$D$65,AJ127,$E$35:$E$65,AI127) -> 0 | O128: =SUMIFS($O$35:$O$65,$B$35:$B$65,AN127,$C$35:$C$65,"=500",$D$35:$D$65,AJ127,$E$35:$E$65,AI127) -> 0 | U128: =SUMIFS($U$35:$U$65,$B$35:$B$65,AN127,C77:C107,"=500",$D$35:$D$65,AJ127,$E$35:$E$65,AI127) -> 0 | Y128: =SUMIFS($Y$35:$Y$65,$B$35:$B$65,AN127,$C$35:$C$65,"=500",$D$35:$D$65,AJ127,$E$35:$E$65,AI127) -> 0 | AC128: =SUMIFS($Z$35:$Z$65,$B$35:$B$65,AN127,$C$35:$C$65,"=500",$D$35:$D$65,AJ127,$E$35:$E$65,AI127) -> 0
A129: =IF(U129=0,"z"," ") -> z | G129: общая | L129: =L127+L128 -> 0 | O129: =O127+O128 -> 0 | R129: =R127 -> 0 | U129: =U127+U128+AB127 -> 0 | Y129: =Y127+Y128 -> 0
A130: =IF(U132=0,"z"," ") -> z | F130: =AI130 -> 0 | H130: =SUMIFS($F$35:$F$65,$C$35:$C$65,"=500",$B$35:$B$65,AM116,$D$35:$D$65,AJ130,$E$35:$E$65,AI130) -> 0 | I130: =AJ130 -> 0 | K130: =AK130 -> 0 | L130: =SUMIFS($L$35:$L$65,$B$35:$B$65,AM130,$C$35:$C$65,"=500",$D$35:$D$65,AJ130,$E$35:$E$65,AI130) -> 0 | O130: =SUMIFS($O$35:$O$65,$B$35:$B$65,AM130,$C$35:$C$65,"=500",$D$35:$D$65,AJ130,$E$35:$E$65,AI130) -> 0 | R130: =AC130+AC131-AB130 -> 0 | U130: =SUMIFS($U$35:$U$65,$B$35:$B$65,AM130,$C$35:$C$65,"=500",$D$35:$D$65,AJ130,$E$35:$E$65,AI130) -> 0 | Y130: =SUMIFS($Y$35:$Y$65,$B$35:$B$65,AM130,$C$35:$C$65,"=500",$D$35:$D$65,AJ130,$E$35:$E$65,AI130) -> 0 | AA130: =AC130+AC131-AB130 -> 0 | AB130: =AG130*AO130/1000/2*AK130 -> 0 | AC130: =SUMIFS($Z$35:$Z$65,$B$35:$B$65,AM130,$C$35:$C$65,"=500",$D$35:$D$65,AJ130,$E$35:$E$65,AI130) -> 0
A131: =IF(U132=0,"z"," ") -> z | G131: Остатки | L131: =SUMIFS($L$35:$L$65,$B$35:$B$65,AN130,$C$35:$C$65,"=500",$D$35:$D$65,AJ130,$E$35:$E$65,AI130) -> 0 | O131: =SUMIFS($O$35:$O$65,$B$35:$B$65,AN130,$C$35:$C$65,"=500",$D$35:$D$65,AJ130,$E$35:$E$65,AI130) -> 0 | U131: =SUMIFS($U$35:$U$65,$B$35:$B$65,AN130,C80:C110,"=500",$D$35:$D$65,AJ130,$E$35:$E$65,AI130) -> 0 | Y131: =SUMIFS($Y$35:$Y$65,$B$35:$B$65,AN130,$C$35:$C$65,"=500",$D$35:$D$65,AJ130,$E$35:$E$65,AI130) -> 0 | AC131: =SUMIFS($Z$35:$Z$65,$B$35:$B$65,AN130,$C$35:$C$65,"=500",$D$35:$D$65,AJ130,$E$35:$E$65,AI130) -> 0
A132: =IF(U132=0,"z"," ") -> z | G132: общая | L132: =L130+L131 -> 0 | O132: =O130+O131 -> 0 | R132: =R130 -> 0 | U132: =U130+U131+AB130 -> 0 | Y132: =Y130+Y131 -> 0
A133: =IF(U135=0,"z"," ") -> z | F133: =AI133 -> 0 | H133: =SUMIFS($F$35:$F$65,$C$35:$C$65,"=500",$B$35:$B$65,AM119,$D$35:$D$65,AJ133,$E$35:$E$65,AI133) -> 0 | I133: =AJ133 -> 0 | K133: =AK133 -> 0 | L133: =SUMIFS($L$35:$L$65,$B$35:$B$65,AM133,$C$35:$C$65,"=500",$D$35:$D$65,AJ133,$E$35:$E$65,AI133) -> 0 | O133: =SUMIFS($O$35:$O$65,$B$35:$B$65,AM133,$C$35:$C$65,"=500",$D$35:$D$65,AJ133,$E$35:$E$65,AI133) -> 0 | R133: =AC133+AC134-AB133 -> 0 | U133: =SUMIFS($U$35:$U$65,$B$35:$B$65,AM133,$C$35:$C$65,"=500",$D$35:$D$65,AJ133,$E$35:$E$65,AI133) -> 0 | Y133: =SUMIFS($Y$35:$Y$65,$B$35:$B$65,AM133,$C$35:$C$65,"=500",$D$35:$D$65,AJ133,$E$35:$E$65,AI133) -> 0 | AA133: =AC133+AC134-AB133 -> 0 | AB133: =AG133*AO133/1000/2*AK133 -> 0 | AC133: =SUMIFS($Z$35:$Z$65,$B$35:$B$65,AM133,$C$35:$C$65,"=500",$D$35:$D$65,AJ133,$E$35:$E$65,AI133) -> 0
A134: =IF(U135=0,"z"," ") -> z | G134: Остатки | L134: =SUMIFS($L$35:$L$65,$B$35:$B$65,AN133,$C$35:$C$65,"=500",$D$35:$D$65,AJ133,$E$35:$E$65,AI133) -> 0 | O134: =SUMIFS($O$35:$O$65,$B$35:$B$65,AN133,$C$35:$C$65,"=500",$D$35:$D$65,AJ133,$E$35:$E$65,AI133) -> 0 | U134: =SUMIFS($U$35:$U$65,$B$35:$B$65,AN133,C83:C113,"=500",$D$35:$D$65,AJ133,$E$35:$E$65,AI133) -> 0 | Y134: =SUMIFS($Y$35:$Y$65,$B$35:$B$65,AN133,$C$35:$C$65,"=500",$D$35:$D$65,AJ133,$E$35:$E$65,AI133) -> 0 | AC134: =SUMIFS($Z$35:$Z$65,$B$35:$B$65,AN133,$C$35:$C$65,"=500",$D$35:$D$65,AJ133,$E$35:$E$65,AI133) -> 0
A135: =IF(U135=0,"z"," ") -> z | G135: общая | L135: =L133+L134 -> 0 | O135: =O133+O134 -> 0 | R135: =R133 -> 0 | U135: =U133+U134+AB133 -> 0 | Y135: =Y133+Y134 -> 0
A136: =IF(U138=0,"z"," ") -> z | F136: =AI136 -> Труба 17х17 чм, 2,0 | H136: =SUMIFS($F$35:$F$65,$C$35:$C$65,"=500",$B$35:$B$65,AM86,$D$35:$D$65,AJ136,$E$35:$E$65,AI136) -> 0 | I136: =AJ136 -> 2 | K136: =AK136 -> 1.88 | L136: =SUMIFS($L$35:$L$65,$B$35:$B$65,AM136,$C$35:$C$65,"=500",$D$35:$D$65,AJ136,$E$35:$E$65,AI136) -> 0 | O136: =SUMIFS($O$35:$O$65,$B$35:$B$65,AM136,$C$35:$C$65,"=500",$D$35:$D$65,AJ136,$E$35:$E$65,AI136) -> 0 | R136: =AC136+AC137-AB136 -> 0 | U136: =SUMIFS($U$35:$U$65,$B$35:$B$65,AM136,$C$35:$C$65,"=500",$D$35:$D$65,AJ136,$E$35:$E$65,AI136) -> 0 | Y136: =SUMIFS($Y$35:$Y$65,$B$35:$B$65,AM136,$C$35:$C$65,"=500",$D$35:$D$65,AJ136,$E$35:$E$65,AI136) -> 0 | AA136: =AC136+AC137-AB136 -> 0 | AB136: =AG136*AO136/1000/2*AK136 -> 0 | AC136: =SUMIFS($Z$35:$Z$65,$B$35:$B$65,AM136,$C$35:$C$65,"=500",$D$35:$D$65,AJ136,$E$35:$E$65,AI136) -> 0 | AG136: =SUMIFS($H$9:$H$31,$E$9:$E$31,AI136) -> 0 | AH136: Труба 17х17х2 | AI136: Труба 17х17 чм, 2,0 | AJ136: 2 | AK136: 1.88 | AL136: 0.94 | AM136: 6000 | AN136: =CONCATENATE("<>",AM136) -> <>6000 | AO136: 5
A137: =IF(U138=0,"z"," ") -> z | G137: Остатки | L137: =SUMIFS($L$35:$L$65,$B$35:$B$65,AN136,$C$35:$C$65,"=500",$D$35:$D$65,AJ136,$E$35:$E$65,AI136) -> 0 | O137: =SUMIFS($O$35:$O$65,$B$35:$B$65,AN136,$C$35:$C$65,"=500",$D$35:$D$65,AJ136,$E$35:$E$65,AI136) -> 0 | U137: =SUMIFS($U$35:$U$65,$B$35:$B$65,AN136,C50:C80,"=500",$D$35:$D$65,AJ136,$E$35:$E$65,AI136) -> 0 | Y137: =SUMIFS($Y$35:$Y$65,$B$35:$B$65,AN136,$C$35:$C$65,"=500",$D$35:$D$65,AJ136,$E$35:$E$65,AI136) -> 0 | AC137: =SUMIFS($Z$35:$Z$65,$B$35:$B$65,AN136,$C$35:$C$65,"=500",$D$35:$D$65,AJ136,$E$35:$E$65,AI136) -> 0
A138: =IF(U138=0,"z"," ") -> z | G138: общая | L138: =L136+L137 -> 0 | O138: =O136+O137 -> 0 | R138: =R136 -> 0 | U138: =U136+U137+AB136 -> 0 | Y138: =Y136+Y137 -> 0
A139: =IF(U141=0,"z"," ") -> z | F139: =AI139 -> Труба 20х20 чм, 0.8 мм | H139: =SUMIFS($F$35:$F$65,$C$35:$C$65,"=500",$B$35:$B$65,AM89,$D$35:$D$65,AJ139,$E$35:$E$65,AI139) -> 0 | I139: =AJ139 -> 0.8 | K139: =AK139 -> 1.006 | L139: =SUMIFS($L$35:$L$65,$B$35:$B$65,AM139,$C$35:$C$65,"=500",$D$35:$D$65,AJ139,$E$35:$E$65,AI139) -> 0 | O139: =SUMIFS($O$35:$O$65,$B$35:$B$65,AM139,$C$35:$C$65,"=500",$D$35:$D$65,AJ139,$E$35:$E$65,AI139) -> 0 | R139: =AC139+AC140-AB139 -> 0 | U139: =SUMIFS($U$35:$U$65,$B$35:$B$65,AM139,$C$35:$C$65,"=500",$D$35:$D$65,AJ139,$E$35:$E$65,AI139) -> 0 | Y139: =SUMIFS($Y$35:$Y$65,$B$35:$B$65,AM139,$C$35:$C$65,"=500",$D$35:$D$65,AJ139,$E$35:$E$65,AI139) -> 0 | AA139: =AC139+AC140-AB139 -> 0 | AB139: =AG139*AO139/1000/2*AK139 -> 0 | AC139: =SUMIFS($Z$35:$Z$65,$B$35:$B$65,AM139,$C$35:$C$65,"=500",$D$35:$D$65,AJ139,$E$35:$E$65,AI139) -> 0 | AG139: =SUMIFS($H$9:$H$31,$E$9:$E$31,AI139) -> 0 | AH139: Труба 20х20х0,8 | AI139: Труба 20х20 чм, 0.8 мм | AJ139: 0.8 | AK139: 1.006 | AL139: 0.503 | AM139: 6000 | AN139: =CONCATENATE("<>",AM139) -> <>6000 | AO139: 5
A140: =IF(U141=0,"z"," ") -> z | G140: Остатки | L140: =SUMIFS($L$35:$L$65,$B$35:$B$65,AN139,$C$35:$C$65,"=500",$D$35:$D$65,AJ139,$E$35:$E$65,AI139) -> 0 | O140: =SUMIFS($O$35:$O$65,$B$35:$B$65,AN139,$C$35:$C$65,"=500",$D$35:$D$65,AJ139,$E$35:$E$65,AI139) -> 0 | U140: =SUMIFS($U$35:$U$65,$B$35:$B$65,AN139,C53:C83,"=500",$D$35:$D$65,AJ139,$E$35:$E$65,AI139) -> 0 | Y140: =SUMIFS($Y$35:$Y$65,$B$35:$B$65,AN139,$C$35:$C$65,"=500",$D$35:$D$65,AJ139,$E$35:$E$65,AI139) -> 0 | AC140: =SUMIFS($Z$35:$Z$65,$B$35:$B$65,AN139,$C$35:$C$65,"=500",$D$35:$D$65,AJ139,$E$35:$E$65,AI139) -> 0
A141: =IF(U141=0,"z"," ") -> z | G141: общая | L141: =L139+L140 -> 0 | O141: =O139+O140 -> 0 | R141: =R139 -> 0 | U141: =U139+U140+AB139 -> 0 | Y141: =Y139+Y140 -> 0
A142: =IF(U144=0,"z"," ") ->  | F142: =AI142 -> Труба 20х20 чм, 1.5 мм | H142: =SUMIFS($F$35:$F$65,$C$35:$C$65,"=500",$B$35:$B$65,AM92,$D$35:$D$65,AJ142,$E$35:$E$65,AI142) -> 0 | I142: =AJ142 -> 1.5 | K142: =AK142 -> 1.872 | L142: =SUMIFS($L$35:$L$65,$B$35:$B$65,AM142,$C$35:$C$65,"=500",$D$35:$D$65,AJ142,$E$35:$E$65,AI142) -> 0 | O142: =SUMIFS($O$35:$O$65,$B$35:$B$65,AM142,$C$35:$C$65,"=500",$D$35:$D$65,AJ142,$E$35:$E$65,AI142) -> 0 | R142: =AC142+AC143-AB142 -> -0.0936 | U142: =SUMIFS($U$35:$U$65,$B$35:$B$65,AM142,$C$35:$C$65,"=500",$D$35:$D$65,AJ142,$E$35:$E$65,AI142) -> 0 | Y142: =SUMIFS($Y$35:$Y$65,$B$35:$B$65,AM142,$C$35:$C$65,"=500",$D$35:$D$65,AJ142,$E$35:$E$65,AI142) -> 0 | AA142: =AC142+AC143-AB142 -> -0.0936 | AB142: =AG142*AO142/1000/2*AK142 -> 0.0936 | AC142: =SUMIFS($Z$35:$Z$65,$B$35:$B$65,AM142,$C$35:$C$65,"=500",$D$35:$D$65,AJ142,$E$35:$E$65,AI142) -> 0 | AG142: =SUMIFS($H$9:$H$31,$E$9:$E$31,AI142) -> 20 | AH142: Труба 20х20х1,5 | AI142: Труба 20х20 чм, 1.5 мм | AJ142: 1.5 | AK142: 1.872 | AL142: 0.936 | AM142: 6000 | AN142: =CONCATENATE("<>",AM142) -> <>6000 | AO142: 5
A143: =IF(U144=0,"z"," ") ->  | G143: Остатки | L143: =SUMIFS($L$35:$L$65,$B$35:$B$65,AN142,$C$35:$C$65,"=500",$D$35:$D$65,AJ142,$E$35:$E$65,AI142) -> 0 | O143: =SUMIFS($O$35:$O$65,$B$35:$B$65,AN142,$C$35:$C$65,"=500",$D$35:$D$65,AJ142,$E$35:$E$65,AI142) -> 0 | U143: =SUMIFS($U$35:$U$65,$B$35:$B$65,AN142,C56:C86,"=500",$D$35:$D$65,AJ142,$E$35:$E$65,AI142) -> 0 | Y143: =SUMIFS($Y$35:$Y$65,$B$35:$B$65,AN142,$C$35:$C$65,"=500",$D$35:$D$65,AJ142,$E$35:$E$65,AI142) -> 0 | AC143: =SUMIFS($Z$35:$Z$65,$B$35:$B$65,AN142,$C$35:$C$65,"=500",$D$35:$D$65,AJ142,$E$35:$E$65,AI142) -> 0
A144: =IF(U144=0,"z"," ") ->  | G144: общая | L144: =L142+L143 -> 0 | O144: =O142+O143 -> 0 | R144: =R142 -> -0.0936 | U144: =U142+U143+AB142 -> 0.0936 | Y144: =Y142+Y143 -> 0
A145: =IF(U147=0,"z"," ") -> z | F145: =AI145 -> Труба 20х20 чм, 2.0 мм | H145: =SUMIFS($F$35:$F$65,$C$35:$C$65,"=500",$B$35:$B$65,AM95,$D$35:$D$65,AJ145,$E$35:$E$65,AI145) -> 0 | I145: =AJ145 -> 2 | K145: =AK145 -> 2.252 | L145: =SUMIFS($L$35:$L$65,$B$35:$B$65,AM145,$C$35:$C$65,"=500",$D$35:$D$65,AJ145,$E$35:$E$65,AI145) -> 0 | O145: =SUMIFS($O$35:$O$65,$B$35:$B$65,AM145,$C$35:$C$65,"=500",$D$35:$D$65,AJ145,$E$35:$E$65,AI145) -> 0 | R145: =AC145+AC146-AB145 -> 0 | U145: =SUMIFS($U$35:$U$65,$B$35:$B$65,AM145,$C$35:$C$65,"=500",$D$35:$D$65,AJ145,$E$35:$E$65,AI145) -> 0 | Y145: =SUMIFS($Y$35:$Y$65,$B$35:$B$65,AM145,$C$35:$C$65,"=500",$D$35:$D$65,AJ145,$E$35:$E$65,AI145) -> 0 | AA145: =AC145+AC146-AB145 -> 0 | AB145: =AG145*AO145/1000/2*AK145 -> 0 | AC145: =SUMIFS($Z$35:$Z$65,$B$35:$B$65,AM145,$C$35:$C$65,"=500",$D$35:$D$65,AJ145,$E$35:$E$65,AI145) -> 0 | AG145: =SUMIFS($H$9:$H$31,$E$9:$E$31,AI145) -> 0 | AH145: Труба 20х20х2 | AI145: Труба 20х20 чм, 2.0 мм | AJ145: 2 | AK145: 2.252 | AL145: 1.126 | AM145: 6000 | AN145: =CONCATENATE("<>",AM145) -> <>6000 | AO145: 5
A146: =IF(U147=0,"z"," ") -> z | G146: Остатки | L146: =SUMIFS($L$35:$L$65,$B$35:$B$65,AN145,$C$35:$C$65,"=500",$D$35:$D$65,AJ145,$E$35:$E$65,AI145) -> 0 | O146: =SUMIFS($O$35:$O$65,$B$35:$B$65,AN145,$C$35:$C$65,"=500",$D$35:$D$65,AJ145,$E$35:$E$65,AI145) -> 0 | U146: =SUMIFS($U$35:$U$65,$B$35:$B$65,AN145,C59:C89,"=500",$D$35:$D$65,AJ145,$E$35:$E$65,AI145) -> 0 | Y146: =SUMIFS($Y$35:$Y$65,$B$35:$B$65,AN145,$C$35:$C$65,"=500",$D$35:$D$65,AJ145,$E$35:$E$65,AI145) -> 0 | AC146: =SUMIFS($Z$35:$Z$65,$B$35:$B$65,AN145,$C$35:$C$65,"=500",$D$35:$D$65,AJ145,$E$35:$E$65,AI145) -> 0
A147: =IF(U147=0,"z"," ") -> z | G147: общая | L147: =L145+L146 -> 0 | O147: =O145+O146 -> 0 | R147: =R145 -> 0 | U147: =U145+U146+AB145 -> 0 | Y147: =Y145+Y146 -> 0
A148: =IF(U150=0,"z"," ") -> z | F148: =AI148 -> Труба 25х25 чм, 1.0 мм | H148: =SUMIFS($F$35:$F$65,$C$35:$C$65,"=500",$B$35:$B$65,AM98,$D$35:$D$65,AJ148,$E$35:$E$65,AI148) -> 0 | I148: =AJ148 -> 1 | K148: =AK148 -> 1.548 | L148: =SUMIFS($L$35:$L$65,$B$35:$B$65,AM148,$C$35:$C$65,"=500",$D$35:$D$65,AJ148,$E$35:$E$65,AI148) -> 0 | O148: =SUMIFS($O$35:$O$65,$B$35:$B$65,AM148,$C$35:$C$65,"=500",$D$35:$D$65,AJ148,$E$35:$E$65,AI148) -> 0 | R148: =AC148+AC149-AB148 -> 0 | U148: =SUMIFS($U$35:$U$65,$B$35:$B$65,AM148,$C$35:$C$65,"=500",$D$35:$D$65,AJ148,$E$35:$E$65,AI148) -> 0 | Y148: =SUMIFS($Y$35:$Y$65,$B$35:$B$65,AM148,$C$35:$C$65,"=500",$D$35:$D$65,AJ148,$E$35:$E$65,AI148) -> 0 | AA148: =AC148+AC149-AB148 -> 0 | AB148: =AG148*AO148/1000/2*AK148 -> 0 | AC148: =SUMIFS($Z$35:$Z$65,$B$35:$B$65,AM148,$C$35:$C$65,"=500",$D$35:$D$65,AJ148,$E$35:$E$65,AI148) -> 0 | AG148: =SUMIFS($H$9:$H$31,$E$9:$E$31,AI148) -> 0 | AH148: Труба 25х25х1 | AI148: Труба 25х25 чм, 1.0 мм | AJ148: 1 | AK148: 1.548 | AL148: 0.774 | AM148: 6000 | AN148: =CONCATENATE("<>",AM148) -> <>6000 | AO148: 5
A149: =IF(U150=0,"z"," ") -> z | G149: Остатки | L149: =SUMIFS($L$35:$L$65,$B$35:$B$65,AN148,$C$35:$C$65,"=500",$D$35:$D$65,AJ148,$E$35:$E$65,AI148) -> 0 | O149: =SUMIFS($O$35:$O$65,$B$35:$B$65,AN148,$C$35:$C$65,"=500",$D$35:$D$65,AJ148,$E$35:$E$65,AI148) -> 0 | U149: =SUMIFS($U$35:$U$65,$B$35:$B$65,AN148,C62:C92,"=500",$D$35:$D$65,AJ148,$E$35:$E$65,AI148) -> 0 | Y149: =SUMIFS($Y$35:$Y$65,$B$35:$B$65,AN148,$C$35:$C$65,"=500",$D$35:$D$65,AJ148,$E$35:$E$65,AI148) -> 0 | AC149: =SUMIFS($Z$35:$Z$65,$B$35:$B$65,AN148,$C$35:$C$65,"=500",$D$35:$D$65,AJ148,$E$35:$E$65,AI148) -> 0
A150: =IF(U150=0,"z"," ") -> z | G150: общая | L150: =L148+L149 -> 0 | O150: =O148+O149 -> 0 | R150: =R148 -> 0 | U150: =U148+U149+AB148 -> 0 | Y150: =Y148+Y149 -> 0
A151: =IF(U153=0,"z"," ") -> z | F151: =AI151 -> Труба 40х40 чм, 2.0 мм | H151: =SUMIFS($F$35:$F$65,$C$35:$C$65,"=500",$B$35:$B$65,AM77,$D$35:$D$65,AJ151,$E$35:$E$65,AI151) -> 0 | I151: =AJ151 -> 2 | K151: =AK151 -> 5.08 | L151: =SUMIFS($L$35:$L$65,$B$35:$B$65,AM151,$C$35:$C$65,"=500",$D$35:$D$65,AJ151,$E$35:$E$65,AI151) -> 0 | O151: =SUMIFS($O$35:$O$65,$B$35:$B$65,AM151,$C$35:$C$65,"=500",$D$35:$D$65,AJ151,$E$35:$E$65,AI151) -> 0 | R151: =AC151+AC152-AB151 -> 0 | U151: =SUMIFS($U$35:$U$65,$B$35:$B$65,AM151,$C$35:$C$65,"=500",$D$35:$D$65,AJ151,$E$35:$E$65,AI151) -> 0 | Y151: =SUMIFS($Y$35:$Y$65,$B$35:$B$65,AM151,$C$35:$C$65,"=500",$D$35:$D$65,AJ151,$E$35:$E$65,AI151) -> 0 | AA151: =AC151+AC152-AB151 -> 0 | AB151: =AG151*AO151/1000/2*AK151 -> 0 | AC151: =SUMIFS($Z$35:$Z$65,$B$35:$B$65,AM151,$C$35:$C$65,"=500",$D$35:$D$65,AJ151,$E$35:$E$65,AI151) -> 0 | AG151: =SUMIFS($H$9:$H$31,$E$9:$E$31,AI151) -> 0 | AH151: Труба 40х40х2 | AI151: Труба 40х40 чм, 2.0 мм | AJ151: 2 | AK151: 5.08 | AL151: 2.54 | AM151: 6000 | AN151: <>6000 | AO151: 5
A152: =IF(U153=0,"z"," ") -> z | G152: Остатки | L152: =SUMIFS($L$35:$L$65,$B$35:$B$65,AN151,$C$35:$C$65,"=500",$D$35:$D$65,AJ151,$E$35:$E$65,AI151) -> 0 | O152: =SUMIFS($O$35:$O$65,$B$35:$B$65,AN151,$C$35:$C$65,"=500",$D$35:$D$65,AJ151,$E$35:$E$65,AI151) -> 0 | U152: =SUMIFS($U$35:$U$65,$B$35:$B$65,AN151,C41:C71,"=500",$D$35:$D$65,AJ151,$E$35:$E$65,AI151) -> 0 | Y152: =SUMIFS($Y$35:$Y$65,$B$35:$B$65,AN151,$C$35:$C$65,"=500",$D$35:$D$65,AJ151,$E$35:$E$65,AI151) -> 0 | AC152: =SUMIFS($Z$35:$Z$65,$B$35:$B$65,AN151,$C$35:$C$65,"=500",$D$35:$D$65,AJ151,$E$35:$E$65,AI151) -> 0
A153: =IF(U153=0,"z"," ") -> z | G153: общая | L153: =L151+L152 -> 0 | O153: =O151+O152 -> 0 | R153: =R151 -> 0 | U153: =U151+U152+AB151 -> 0 | Y153: =Y151+Y152 -> 0
A154: =IF(U156=0,"z"," ") -> z | F154: =AI154 -> 0 | H154: =SUMIFS($F$35:$F$65,$C$35:$C$65,"=500",$B$35:$B$65,AM80,$D$35:$D$65,AJ154,$E$35:$E$65,AI154) -> 0 | I154: =AJ154 -> 1.5 | K154: =AK154 -> 1.918 | L154: =SUMIFS($L$35:$L$65,$B$35:$B$65,AM154,$C$35:$C$65,"=500",$D$35:$D$65,AJ154,$E$35:$E$65,AI154) -> 0 | O154: =SUMIFS($O$35:$O$65,$B$35:$B$65,AM154,$C$35:$C$65,"=500",$D$35:$D$65,AJ154,$E$35:$E$65,AI154) -> 0 | R154: =AC154+AC155-AB154 -> 0 | U154: =SUMIFS($U$35:$U$65,$B$35:$B$65,AM154,$C$35:$C$65,"=500",$D$35:$D$65,AJ154,$E$35:$E$65,AI154) -> 0 | Y154: =SUMIFS($Y$35:$Y$65,$B$35:$B$65,AM154,$C$35:$C$65,"=500",$D$35:$D$65,AJ154,$E$35:$E$65,AI154) -> 0 | AA154: =AC154+AC155-AB154 -> 0 | AB154: =AG154*AO154/1000/2*AK154 -> 0 | AC154: =SUMIFS($Z$35:$Z$65,$B$35:$B$65,AM154,$C$35:$C$65,"=500",$D$35:$D$65,AJ154,$E$35:$E$65,AI154) -> 0 | AG154: =SUMIFS($H$9:$H$31,$E$9:$E$31,AI154) -> 0 | AH154: Труба ø 30х15 | AJ154: 1.5 | AK154: 1.918 | AL154: 0.959 | AM154: 6000 | AN154: <>6000 | AO154: 5
A155: =IF(U156=0,"z"," ") -> z | G155: Остатки | L155: =SUMIFS($L$35:$L$65,$B$35:$B$65,AN154,$C$35:$C$65,"=500",$D$35:$D$65,AJ154,$E$35:$E$65,AI154) -> 0 | O155: =SUMIFS($O$35:$O$65,$B$35:$B$65,AN154,$C$35:$C$65,"=500",$D$35:$D$65,AJ154,$E$35:$E$65,AI154) -> 0 | U155: =SUMIFS($U$35:$U$65,$B$35:$B$65,AN154,C44:C74,"=500",$D$35:$D$65,AJ154,$E$35:$E$65,AI154) -> 0 | Y155: =SUMIFS($Y$35:$Y$65,$B$35:$B$65,AN154,$C$35:$C$65,"=500",$D$35:$D$65,AJ154,$E$35:$E$65,AI154) -> 0 | AC155: =SUMIFS($Z$35:$Z$65,$B$35:$B$65,AN154,$C$35:$C$65,"=500",$D$35:$D$65,AJ154,$E$35:$E$65,AI154) -> 0
A156: =IF(U156=0,"z"," ") -> z | G156: общая | L156: =L154+L155 -> 0 | O156: =O154+O155 -> 0 | R156: =R154 -> 0 | U156: =U154+U155+AB154 -> 0 | Y156: =Y154+Y155 -> 0
A157: =IF(U159=0,"z"," ") -> z | F157: =AI157 -> Труба 50 чм, 1.2 мм | H157: =SUMIFS($F$35:$F$65,$C$35:$C$65,"=500",$B$35:$B$65,AM83,$D$35:$D$65,AJ157,$E$35:$E$65,AI157) -> 0 | I157: =AJ157 -> 1.2 | K157: =AK157 -> 2.88 | L157: =SUMIFS($L$35:$L$65,$B$35:$B$65,AM157,$C$35:$C$65,"=500",$D$35:$D$65,AJ157,$E$35:$E$65,AI157) -> 0 | O157: =SUMIFS($O$35:$O$65,$B$35:$B$65,AM157,$C$35:$C$65,"=500",$D$35:$D$65,AJ157,$E$35:$E$65,AI157) -> 0 | R157: =AC157+AC158-AB157 -> 0 | U157: =SUMIFS($U$35:$U$65,$B$35:$B$65,AM157,$C$35:$C$65,"=500",$D$35:$D$65,AJ157,$E$35:$E$65,AI157) -> 0 | Y157: =SUMIFS($Y$35:$Y$65,$B$35:$B$65,AM157,$C$35:$C$65,"=500",$D$35:$D$65,AJ157,$E$35:$E$65,AI157) -> 0 | AA157: =AC157+AC158-AB157 -> 0 | AB157: =AG157*AO157/1000/2*AK157 -> 0 | AC157: =SUMIFS($Z$35:$Z$65,$B$35:$B$65,AM157,$C$35:$C$65,"=500",$D$35:$D$65,AJ157,$E$35:$E$65,AI157) -> 0 | AG157: =SUMIFS($H$9:$H$31,$E$9:$E$31,AI157) -> 0 | AH157: Труба ø50х1.2 | AI157: Труба 50 чм, 1.2 мм | AJ157: 1.2 | AK157: 2.88 | AL157: 1.44 | AM157: 6000 | AN157: <>6000 | AO157: 5
A158: =IF(U159=0,"z"," ") -> z | G158: Остатки | L158: =SUMIFS($L$35:$L$65,$B$35:$B$65,AN157,$C$35:$C$65,"=500",$D$35:$D$65,AJ157,$E$35:$E$65,AI157) -> 0 | O158: =SUMIFS($O$35:$O$65,$B$35:$B$65,AN157,$C$35:$C$65,"=500",$D$35:$D$65,AJ157,$E$35:$E$65,AI157) -> 0 | U158: =SUMIFS($U$35:$U$65,$B$35:$B$65,AN157,C47:C77,"=500",$D$35:$D$65,AJ157,$E$35:$E$65,AI157) -> 0 | Y158: =SUMIFS($Y$35:$Y$65,$B$35:$B$65,AN157,$C$35:$C$65,"=500",$D$35:$D$65,AJ157,$E$35:$E$65,AI157) -> 0 | AC158: =SUMIFS($Z$35:$Z$65,$B$35:$B$65,AN157,$C$35:$C$65,"=500",$D$35:$D$65,AJ157,$E$35:$E$65,AI157) -> 0
A159: =IF(U159=0,"z"," ") -> z | G159: общая | L159: =L157+L158 -> 0 | O159: =O157+O158 -> 0 | R159: =R157 -> 0 | U159: =U157+U158+AB157 -> 0 | Y159: =Y157+Y158 -> 0
A160: =IF(U162=0,"z"," ") -> z | F160: =AI160 -> Труба 25х25 чм, 1.2 мм | H160: =SUMIFS($F$35:$F$65,$C$35:$C$65,"=500",$B$35:$B$65,AM86,$D$35:$D$65,AJ160,$E$35:$E$65,AI160) -> 0 | I160: =AJ160 -> 1.2 | K160: =AK160 -> 1.8576 | L160: =SUMIFS($L$35:$L$65,$B$35:$B$65,AM160,$C$35:$C$65,"=500",$D$35:$D$65,AJ160,$E$35:$E$65,AI160) -> 0 | O160: =SUMIFS($O$35:$O$65,$B$35:$B$65,AM160,$C$35:$C$65,"=500",$D$35:$D$65,AJ160,$E$35:$E$65,AI160) -> 0 | R160: =AC160+AC161-AB160 -> 0 | U160: =SUMIFS($U$35:$U$65,$B$35:$B$65,AM160,$C$35:$C$65,"=500",$D$35:$D$65,AJ160,$E$35:$E$65,AI160) -> 0 | Y160: =SUMIFS($Y$35:$Y$65,$B$35:$B$65,AM160,$C$35:$C$65,"=500",$D$35:$D$65,AJ160,$E$35:$E$65,AI160) -> 0 | AA160: =AC160+AC161-AB160 -> 0 | AB160: =AG160*AO160/1000/2*AK160 -> 0 | AC160: =SUMIFS($Z$35:$Z$65,$B$35:$B$65,AM160,$C$35:$C$65,"=500",$D$35:$D$65,AJ160,$E$35:$E$65,AI160) -> 0 | AG160: =SUMIFS($H$9:$H$31,$E$9:$E$31,AI160) -> 0 | AH160: Труба 25х25х1,2 | AI160: Труба 25х25 чм, 1.2 мм | AJ160: 1.2 | AK160: 1.8576 | AL160: 0.9288 | AM160: 6000 | AN160: =CONCATENATE("<>",AM160) -> <>6000 | AO160: 5
A161: =IF(U162=0,"z"," ") -> z | G161: Остатки | L161: =SUMIFS($L$35:$L$65,$B$35:$B$65,AN160,$C$35:$C$65,"=500",$D$35:$D$65,AJ160,$E$35:$E$65,AI160) -> 0 | O161: =SUMIFS($O$35:$O$65,$B$35:$B$65,AN160,$C$35:$C$65,"=500",$D$35:$D$65,AJ160,$E$35:$E$65,AI160) -> 0 | U161: =SUMIFS($U$35:$U$65,$B$35:$B$65,AN160,C50:C80,"=500",$D$35:$D$65,AJ160,$E$35:$E$65,AI160) -> 0 | Y161: =SUMIFS($Y$35:$Y$65,$B$35:$B$65,AN160,$C$35:$C$65,"=500",$D$35:$D$65,AJ160,$E$35:$E$65,AI160) -> 0 | AC161: =SUMIFS($Z$35:$Z$65,$B$35:$B$65,AN160,$C$35:$C$65,"=500",$D$35:$D$65,AJ160,$E$35:$E$65,AI160) -> 0
A162: =IF(U162=0,"z"," ") -> z | G162: общая | L162: =L160+L161 -> 0 | O162: =O160+O161 -> 0 | R162: =R160 -> 0 | U162: =U160+U161+AB160 -> 0 | Y162: =Y160+Y161 -> 0
A163: =IF(U165=0,"z"," ") -> z | F163: =AI163 -> Труба 25х25 чм, 2.0 мм | H163: =SUMIFS($F$35:$F$65,$C$35:$C$65,"=500",$B$35:$B$65,AM89,$D$35:$D$65,AJ163,$E$35:$E$65,AI163) -> 0 | I163: =AJ163 -> 2 | K163: =AK163 -> 3.096 | L163: =SUMIFS($L$35:$L$65,$B$35:$B$65,AM163,$C$35:$C$65,"=500",$D$35:$D$65,AJ163,$E$35:$E$65,AI163) -> 0 | O163: =SUMIFS($O$35:$O$65,$B$35:$B$65,AM163,$C$35:$C$65,"=500",$D$35:$D$65,AJ163,$E$35:$E$65,AI163) -> 0 | R163: =AC163+AC164-AB163 -> 0 | U163: =SUMIFS($U$35:$U$65,$B$35:$B$65,AM163,$C$35:$C$65,"=500",$D$35:$D$65,AJ163,$E$35:$E$65,AI163) -> 0 | Y163: =SUMIFS($Y$35:$Y$65,$B$35:$B$65,AM163,$C$35:$C$65,"=500",$D$35:$D$65,AJ163,$E$35:$E$65,AI163) -> 0 | AA163: =AC163+AC164-AB163 -> 0 | AB163: =AG163*AO163/1000/2*AK163 -> 0 | AC163: =SUMIFS($Z$35:$Z$65,$B$35:$B$65,AM163,$C$35:$C$65,"=500",$D$35:$D$65,AJ163,$E$35:$E$65,AI163) -> 0 | AG163: =SUMIFS($H$9:$H$31,$E$9:$E$31,AI163) -> 0 | AH163: Труба 25х25х2 | AI163: Труба 25х25 чм, 2.0 мм | AJ163: 2 | AK163: 3.096 | AL163: 1.548 | AM163: 6000 | AN163: =CONCATENATE("<>",AM163) -> <>6000 | AO163: 5
A164: =IF(U165=0,"z"," ") -> z | G164: Остатки | L164: =SUMIFS($L$35:$L$65,$B$35:$B$65,AN163,$C$35:$C$65,"=500",$D$35:$D$65,AJ163,$E$35:$E$65,AI163) -> 0 | O164: =SUMIFS($O$35:$O$65,$B$35:$B$65,AN163,$C$35:$C$65,"=500",$D$35:$D$65,AJ163,$E$35:$E$65,AI163) -> 0 | U164: =SUMIFS($U$35:$U$65,$B$35:$B$65,AN163,C53:C83,"=500",$D$35:$D$65,AJ163,$E$35:$E$65,AI163) -> 0 | Y164: =SUMIFS($Y$35:$Y$65,$B$35:$B$65,AN163,$C$35:$C$65,"=500",$D$35:$D$65,AJ163,$E$35:$E$65,AI163) -> 0 | AC164: =SUMIFS($Z$35:$Z$65,$B$35:$B$65,AN163,$C$35:$C$65,"=500",$D$35:$D$65,AJ163,$E$35:$E$65,AI163) -> 0
A165: =IF(U165=0,"z"," ") -> z | G165: общая | L165: =L163+L164 -> 0 | O165: =O163+O164 -> 0 | R165: =R163 -> 0 | U165: =U163+U164+AB163 -> 0 | Y165: =Y163+Y164 -> 0
A166: =IF(U168=0,"z"," ") -> z | F166: =AI166 -> Труба 25х28 чм, 1.5 мм | H166: =SUMIFS($F$35:$F$65,$C$35:$C$65,"=500",$B$35:$B$65,AM152,$D$35:$D$65,AJ166,$E$35:$E$65,AI166) -> 0 | I166: =AJ166 -> 1.5 | K166: =AK166 -> 2.6 | L166: =SUMIFS($L$35:$L$65,$B$35:$B$65,AM166,$C$35:$C$65,"=500",$D$35:$D$65,AJ166,$E$35:$E$65,AI166) -> 0 | O166: =SUMIFS($O$35:$O$65,$B$35:$B$65,AM166,$C$35:$C$65,"=500",$D$35:$D$65,AJ166,$E$35:$E$65,AI166) -> 0 | R166: =AC166+AC167-AB166 -> 0 | U166: =SUMIFS($U$35:$U$65,$B$35:$B$65,AM166,$C$35:$C$65,"=500",$D$35:$D$65,AJ166,$E$35:$E$65,AI166) -> 0 | Y166: =SUMIFS($Y$35:$Y$65,$B$35:$B$65,AM166,$C$35:$C$65,"=500",$D$35:$D$65,AJ166,$E$35:$E$65,AI166) -> 0 | AA166: =AC166+AC167-AB166 -> 0 | AB166: =AG166*AO166/1000/2*AK166 -> 0 | AC166: =SUMIFS($Z$35:$Z$65,$B$35:$B$65,AM166,$C$35:$C$65,"=500",$D$35:$D$65,AJ166,$E$35:$E$65,AI166) -> 0 | AG166: =SUMIFS($H$9:$H$31,$E$9:$E$31,AI166) -> 0 | AH166: Труба 25х28х1,5 | AI166: Труба 25х28 чм, 1.5 мм | AJ166: 1.5 | AK166: 2.6 | AL166: 1.3 | AM166: 6000 | AN166: =CONCATENATE("<>",AM166) -> <>6000 | AO166: 5
A167: =IF(U168=0,"z"," ") -> z | G167: Остатки | L167: =SUMIFS($L$35:$L$65,$B$35:$B$65,AN166,$C$35:$C$65,"=500",$D$35:$D$65,AJ166,$E$35:$E$65,AI166) -> 0 | O167: =SUMIFS($O$35:$O$65,$B$35:$B$65,AN166,$C$35:$C$65,"=500",$D$35:$D$65,AJ166,$E$35:$E$65,AI166) -> 0 | U167: =SUMIFS($U$35:$U$65,$B$35:$B$65,AN166,C56:C86,"=500",$D$35:$D$65,AJ166,$E$35:$E$65,AI166) -> 0 | Y167: =SUMIFS($Y$35:$Y$65,$B$35:$B$65,AN166,$C$35:$C$65,"=500",$D$35:$D$65,AJ166,$E$35:$E$65,AI166) -> 0 | AC167: =SUMIFS($Z$35:$Z$65,$B$35:$B$65,AN166,$C$35:$C$65,"=500",$D$35:$D$65,AJ166,$E$35:$E$65,AI166) -> 0
A168: =IF(U168=0,"z"," ") -> z | G168: общая | L168: =L166+L167 -> 0 | O168: =O166+O167 -> 0 | R168: =R166 -> 0 | U168: =U166+U167+AB166 -> 0 | Y168: =Y166+Y167 -> 0
A169: =IF(U171=0,"z"," ") -> z | F169: =AI169 -> 0 | H169: =SUMIFS($F$35:$F$65,$C$35:$C$65,"=500",$B$35:$B$65,AM155,$D$35:$D$65,AJ169,$E$35:$E$65,AI169) -> 0 | I169: =AJ169 -> 0 | K169: =AK169 -> 0 | L169: =SUMIFS($L$35:$L$65,$B$35:$B$65,AM169,$C$35:$C$65,"=500",$D$35:$D$65,AJ169,$E$35:$E$65,AI169) -> 0 | O169: =SUMIFS($O$35:$O$65,$B$35:$B$65,AM169,$C$35:$C$65,"=500",$D$35:$D$65,AJ169,$E$35:$E$65,AI169) -> 0 | R169: =AC169+AC170-AB169 -> 0 | U169: =SUMIFS($U$35:$U$65,$B$35:$B$65,AM169,$C$35:$C$65,"=500",$D$35:$D$65,AJ169,$E$35:$E$65,AI169) -> 0 | Y169: =SUMIFS($Y$35:$Y$65,$B$35:$B$65,AM169,$C$35:$C$65,"=500",$D$35:$D$65,AJ169,$E$35:$E$65,AI169) -> 0 | AA169: =AC169+AC170-AB169 -> 0 | AB169: =AG169*AO169/1000/2*AK169 -> 0 | AC169: =SUMIFS($Z$35:$Z$65,$B$35:$B$65,AM169,$C$35:$C$65,"=500",$D$35:$D$65,AJ169,$E$35:$E$65,AI169) -> 0
A170: =IF(U171=0,"z"," ") -> z | G170: Остатки | L170: =SUMIFS($L$35:$L$65,$B$35:$B$65,AN169,$C$35:$C$65,"=500",$D$35:$D$65,AJ169,$E$35:$E$65,AI169) -> 0 | O170: =SUMIFS($O$35:$O$65,$B$35:$B$65,AN169,$C$35:$C$65,"=500",$D$35:$D$65,AJ169,$E$35:$E$65,AI169) -> 0 | U170: =SUMIFS($U$35:$U$65,$B$35:$B$65,AN169,C59:C89,"=500",$D$35:$D$65,AJ169,$E$35:$E$65,AI169) -> 0 | Y170: =SUMIFS($Y$35:$Y$65,$B$35:$B$65,AN169,$C$35:$C$65,"=500",$D$35:$D$65,AJ169,$E$35:$E$65,AI169) -> 0 | AC170: =SUMIFS($Z$35:$Z$65,$B$35:$B$65,AN169,$C$35:$C$65,"=500",$D$35:$D$65,AJ169,$E$35:$E$65,AI169) -> 0
A171: =IF(U171=0,"z"," ") -> z | G171: общая | L171: =L169+L170 -> 0 | O171: =O169+O170 -> 0 | R171: =R169 -> 0 | U171: =U169+U170+AB169 -> 0 | Y171: =Y169+Y170 -> 0
A172: =IF(U174=0,"z"," ") ->  | F172: =AI172 -> 0 | H172: =SUMIFS($F$35:$F$65,$C$35:$C$65,"=500",$B$35:$B$65,AM158,$D$35:$D$65,AJ172,$E$35:$E$65,AI172) -> 0 | I172: =AJ172 -> 0 | K172: =AK172 -> 0 | L172: =SUMIFS($L$35:$L$65,$B$35:$B$65,AM172,$C$35:$C$65,"=500",$D$35:$D$65,AJ172,$E$35:$E$65,AI172) -> 0 | O172: =SUMIFS($O$35:$O$65,$B$35:$B$65,AM172,$C$35:$C$65,"=500",$D$35:$D$65,AJ172,$E$35:$E$65,AI172) -> 0 | R172: =AC172+AC173-AB172 -> 0 | U172: =SUMIFS($U$35:$U$65,$B$35:$B$65,AM172,$C$35:$C$65,"=500",$D$35:$D$65,AJ172,$E$35:$E$65,AI172) -> 0 | Y172: =SUMIFS($Y$35:$Y$65,$B$35:$B$65,AM172,$C$35:$C$65,"=500",$D$35:$D$65,AJ172,$E$35:$E$65,AI172) -> 0 | AA172: =AC172+AC173-AB172 -> 0 | AB172: =AG172*AO172/1000/2*AK172 -> 0 | AC172: =SUMIFS($Z$35:$Z$65,$B$35:$B$65,AM172,$C$35:$C$65,"=500",$D$35:$D$65,AJ172,$E$35:$E$65,AI172) -> 0
A173: =IF(U174=0,"z"," ") ->  | G173: Остатки | L173: =SUMIFS($L$35:$L$65,$B$35:$B$65,AN172,$C$35:$C$65,"=500",$D$35:$D$65,AJ172,$E$35:$E$65,AI172) -> 0 | O173: =SUMIFS($O$35:$O$65,$B$35:$B$65,AN172,$C$35:$C$65,"=500",$D$35:$D$65,AJ172,$E$35:$E$65,AI172) -> 0 | U173: =SUMIFS($U$35:$U$65,$B$35:$B$65,AN172,C62:C152,"=500",$D$35:$D$65,AJ172,$E$35:$E$65,AI172) ->  | Y173: =SUMIFS($Y$35:$Y$65,$B$35:$B$65,AN172,$C$35:$C$65,"=500",$D$35:$D$65,AJ172,$E$35:$E$65,AI172) -> 0 | AC173: =SUMIFS($Z$35:$Z$65,$B$35:$B$65,AN172,$C$35:$C$65,"=500",$D$35:$D$65,AJ172,$E$35:$E$65,AI172) -> 0
A174: =IF(U174=0,"z"," ") ->  | G174: общая | L174: =L172+L173 -> 0 | O174: =O172+O173 -> 0 | R174: =R172 -> 0 | U174: =U172+U173+AB172 ->  | Y174: =Y172+Y173 -> 0
A175: Подпись | E175: Инженер-технолог
A176: Подпись | E176: Нач техотдела
A177: Подпись | E177: Генеральный директор
